{"text_format":"1","workbook":"xlsx","n_sheets":9,"sheets":["User Guide","Why we are here","Views","Risks & Issues","Current Care Package","Action Summary","Print","Source data","Concerns"],"not_rendered":{"charts":0,"images":20,"macros":1,"external_links":2,"defined_names":77,"comments":0,"pivot_tables":0},"unopened":[],"bounds":{"document_bytes":16777216,"sheet_cells":100000,"rows_first":2000,"rows_last":500,"rows_between":2000,"halvings":0,"cell_chars":16384,"cell_head_chars":4096},"cells_cut":0,"cells_raw":0,"read":"whole","date_system":"1900"}

{"sheet":"User Guide","index":0,"n_rows":56,"n_cols":3,"rows_kept":56,"cut":false,"hidden":false,"merged":[]}
["User Guide"]
[]
[]
[null,null,"1. You will need to ensure that macros have been enabled in order to activate the full functionality of this document"]
[]
[]
[]
[null,null,"2. Go through each of the tabs in turn, adding as much information and detail as you can"]
[]
[]
[]
[null,null,"3. Each tab relates to a specific aspect of the service user's diagnosis, care and treatment. Some tabs will also require input from another person, such as "]
[null,null,"a family member or advocate"]
[]
[]
[]
[null,null,"4. None of the fields are mandatory, so they can be left blank if not applicable or so that information can be added or updated later"]
[]
[]
[]
[null,null,"5. Some fields will require a date, and should therefore be completed in the correct format as described (dd/mm/yyyy)"]
[]
[]
[]
[null,null,"6. Some fields will require you to select from a drop down list. These fields are clearly marked as they are formatted in a different light blue colour to"]
[null,null,"the rest of the fields"]
[]
[]
[]
[null,null,"7. In some instances, the option you select from a drop down list will add or remove questions further down the sheet. Please just continue to record"]
[null,null,"answers to all visible questions"]
[]
[]
[]
[null,null,"8. At the bottom of most tabs, there are summary tables to be completed based on information already inputted. The text from these summary tables "]
[null,null,"will then be used to autopopulate the Action Summary tab at the end of the document."]
[]
[]
[]
[null,null,"9. The Summary table at the bottom of the Why We Are Here tab will also be autopopulated"]
[]
[]
[]
[null,null,"10. Buttons:"]
[]
[]
[null,null,"SAVE FORM: This button saves the document and will therefore save all recent changes made to the document"]
[]
[null,null,"HIDE/SHOW SUPPORTING QUESTIONS: This button allows you to toggle between hiding and showing the supporting questions in each tab"]
[]
[]
[null,null,"SPELL CHECK SHEET: This button allows you to check the spelling of all inputted information in the current tab"]
[]
[null,null,"PRINT TO PDF: This button allows you to save the Action Summary tab in pdf format (landscape orientation)"]
[]
[null,null,"FULL VIEW: This button (located on the Action Summary tab) ensures that all of the text in each cell is visible"]

{"sheet":"Why we are here","index":1,"n_rows":51,"n_cols":3,"rows_kept":51,"cut":false,"hidden":false,"merged":[[0,1,0,2],[1,1,1,2],[2,1,2,2],[3,1,3,2]]}
[null,"Key Lines of Enquiry (KLOE) to support the Care and Treatment Review of a person over the age of 18 \n(who does not have an Educational Health Care Plan) in the community"]
[null,"FOCUS OF THIS REVIEW:"]
[null,"To establish whether the person's care and treatment needs can be met effectively and safely in the community through additional and/or alternative support and interventions. To ensure that wherever possible, hospital admission is avoided unless deemed absolutely necessary. Please refer to the CTR policy and Code and Toolkit for supporting information and minimum standards to help support this review.\nPlease give consideration in particular to: \n - flexible individual payments through a personal budget, PHB or integrated budget\n - specialist health teams, LA respite/short break provision, voluntary agencies, peer support from care organisations"]
[null,"Please refer to the CTR policy and Code and Toolkit for supporting information and minimum standards to help support this review."]
[]
[null,"VERY IMPORTANT QUESTIONS"]
[null,"In advance of the CTR, who has spoken with the person, their family and their advocate about this review?"]
[null,"Who will be feeding back to the person, their family and their advocate after the review?"]
[null,"List any outstanding actions from the last CTR? "]
[]
[null,"Information About The Person Being Reviewed:"]
[null,"Person's CTR unique identifier"]
[null,"Responsible ICB","Please select from list"]
[null,"Basis of Consent for Review","Please select from list"]
[null,"Does the person have a learning disability?","Please select from list"]
[null,"Is the person autistic?","Please select from list"]
[null,"Does the person have a mental health diagnosis? If so, what is it?"]
[null,"Has there been a previous community CTR? ","Please select from list"]
[null,"Date of previous community CTR?   (dd/mm/yyyy)"]
[null,"Has there been a previous inpatient CTR? ","Please select from list"]
[null,"Date of previous inpatient CTR?   (dd/mm/yyyy)"]
[null,"What were the recommendations and findings of this/these CTR(s)?"]
[null,"What has triggered this CTR? \ninclude any relevant family history, education history etc. which could impact on the person's wellbeing"]
[]
[null,"Information About The Panel:"]
[null,"Date of Review   (dd/mm/yyyy)"]
[null,"Has the panel completed a CTR for the person before?","Please select from list"]
[null,"Chair   (responsible commissioner or person with delegated authority)"]
[null,"Independent expert by experience"]
[null,"Independent clinical expert"]
[null,"Other Panel member (eg. Pharmacist, MHA Reviewer from CQC)"]
[null,"Family members / siblings / carer"]
[null,"Advocate "]
[null,"Commissioner responsible for person's care"]
[null,"Responsible clinician"]
[null,"Senior nurse / clinical staff"]
[null,"Social Care Professional e.g social worker"]
[null,"Other (specify)"]
[null,"Other (specify)"]
[null,"Is the experience and expertise of those attending Panel today appropriate to enable a decision to be made in this case today? If not, what steps have been taken to ensure this happens?"]
[null,"Important parties who did not attend the review:"]
[]
[null,"DSR Information:"]
[null,"Name of lead professional responsible for care plan"]
[null,"Date of last review of care plans and risk assessment"]
[null,"DSR RAG rating prior to today's CTR","Please select from list"]
[null,"DSR RAG rating assessed today (NB. update DSR if different than previously)","Please select from list"]
[null,"Date of most recent consent for inclusion on DSR"]
[]
[null,"Summary:            (please note this information will auto-populate when the Action Summary is completed)"]
[null,"Outcome of CTR:",{"$f":"'Action Summary'!C42","v":"Please select from list"}]

{"sheet":"Views","index":2,"n_rows":55,"n_cols":8,"rows_kept":55,"cut":false,"hidden":false,"merged":[[0,1,0,7],[15,1,15,7],[1,1,1,7],[38,1,38,7],[4,1,6,1],[7,1,9,1],[10,1,13,1],[3,5,5,6],[8,5,10,6]]}
[null,"STEP 1: Key Lines of Enquiry (KLOE) to support the panel to obtain the views of the person, their family and their advocate"]
[null,"Method of gathering information: \n- This information should be gathered face to face wherever possible\n- No Panel should ever ask all of the questions provided below.  These are to be used as prompts to engage and steer the conversation to facilitate a productive CTR.  \n- Excessive use of questions could inhibit the natural flow of conversation leading to disengagement and disgruntlement towards the review whilst leaving out the person's true feelings and thoughts."]
[]
[null,"a)","Is there a communication passport or other means of ensuring people know how best to communicate and engage with the person?","Please select from list"]
[null,"b)","Has the person been part of this CTR?","Please select from list"]
[null,null,"If not, why not?"]
[null,null,"Who assisted them to provide their views and what is their relationship with the person?"]
[null,"c)","Have the person's family been part of this CTR?","Please select from list"]
[null,null,"Name of family member(s) and their relationship to the person:"]
[null,null,"If not, why not?"]
[null,"d)","Has the person's advocate been part of the CTR?","Please select from list"]
[null,null,"If not, why not?"]
[null,null,"Name of advocate"]
[null,null,"Type of advocate"]
[]
[null,"Please ensure that where a concern is highlighted, it is added to the table below to help form the final action plan."]
[null,"No.","KLOEs","Views of the person and any concerns","Views of the family or carer and any concerns","Views of the advocate and any concerns","Views of the current care team and any concerns","Summary of any concerns highlighted (please also populate the table below)"]
[null,1.1000000000000001,"Safety","Safety","Safety","Safety","Safety","Safety"]
[null,null,"Does the person feel safe?  \nAre there any concens around harm to themselves or others?"]
[null,1.2,"Medication","Medication","Medication","Medication","Medication","Medication"]
[null,null,"Does the person have an understanding of what their medications are for?\nAre medications taken regularly?\nDoes the person think that the medication is helping them to feel well?\nDoes the person experience any side effects from the medication?\tAre there clear treatment timescales and regular reviews?"]
[null,1.3,"Physical Health","Physical Health","Physical Health","Physical Health","Physical Health","Physical Health"]
[null,null,"Is the person worried about any changes to their health? e.g. weight, eyesight, hearing, teeth? Have there been any recent hospital visits?\nIs the person eating and drinking normally and having a varied diet?\nDoes the person sleep well?\nAre their care plans up to date? Do they have any additional physical health needs or long term conditions?"]
[null,1.4,"Mental Health ","Mental Health ","Mental Health ","Mental Health ","Mental Health ","Mental Health "]
[null,null,"Is the person feeling sad or anxious?\nDoes this stop the person doing things or seeing people or impact on their day to day life?\nAre there any additional mental health needs? "]
[null,1.5,"Personal Care needs","Personal Care needs","Personal Care needs","Personal Care needs","Personal Care needs","Personal Care needs"]
[null,null,"Does the person require support to attend to their personbal care needs eg- Washing, dressing? \nDoes the person have everything they need to be able to look after their personal care? Eg- clothes and shoes? "]
[null,1.6,"Advocacy","Advocacy","Advocacy","Advocacy","Advocacy","Advocacy"]
[null,null,"Does the person have access to an advocate? Does the person speak openly about their thoughts and feelings?  Do you feel the person is getting all the advocacy support they need? If not, what would help? "]
[null,1.7,"Quality of Life","Quality of Life","Quality of Life","Quality of Life","Quality of Life","Quality of Life"]
[null,null,"Does the person spend time with family and friends?\nDoes the person feel valued and respected?\nDo they feel people treat them well? \nWhat activities do they enjoy doing?\nHow often do they do things they like? \nIs the person supported to express their religious and cultural beliefs?"]
[null,1.8,"Accommodation","Accommodation","Accommodation","Accommodation","Accommodation","Accommodation"]
[null,null,"Is there anything the person wants to change about their current living environment?\nIs there anything that could help them live more independently? Eg- adaptations to the environment? Would the person be able to return to their current accomodation if they were admitted to hospital?\n"]
[]
[null,null,"Level of Confidence in care provision following conversations with the person","Please select from list"]
[null,null,"Level of Confidence in care provision following conversations with family","Please select from list"]
[null,null,"Level of Confidence in care provision following conversations with the advocate","Please select from list"]
[null,null,"Level of Confidence in care provision following conversations with the care team","Please select from list"]
[]
[null,"Ref","Nature of Concern","Action","Desired Outcome","Date for Completion (dd/mm/yyyy)","Name of Person Responsible"]
[null,"A1"]
[null,"A2"]
[null,"A3"]
[null,"A4"]
[null,"A5"]
[null,"A6"]
[]
[]
[]
[null,null,{"$f":"C41","v":0}]
[null,null,0]
[null,null,0]
[null,null,0]
[null,null,0]
[null,null,0]

{"sheet":"Risks & Issues","index":3,"n_rows":48,"n_cols":7,"rows_kept":48,"cut":false,"hidden":false,"merged":[[0,1,0,4],[4,1,4,4],[39,1,39,2],[16,2,16,3],[22,2,22,3],[34,2,34,3],[1,1,1,4],[8,1,10,1]]}
[null,"STEP 2: Review of Risks and Issues"]
[]
[]
[]
[null,"Please ensure that where a concern is highlighted, it is added to the table below to help form the final action plan"]
[null,"Ref:","KLOEs to Support Review ","Responses","Summary (please ensure any concerns are highlighted in the table below to help form the final action plan) "]
[null,2.1,"Risk of Harm to the Person and Others"]
[null,"2.1.1","Is there a clear and detailed, up-to-date risk assessment in place which takes into account the views of the person, their family and community staff?","Please select from list"]
[null,"2.1.2","Does the person pose a risk of harm to themselves?","Please select from list"]
[null,null,"What is the nature of the harm?","Provide details:"]
[null,null,"What is being done to minimise the risk?","Provide details:"]
[null,"2.1.3","Does the person pose a risk of harm to others?","Please select from list"]
[null,null,"What is the nature of the harm?","Provide details:"]
[null,null,"What is being done to minimise the risk?","Provide details:"]
[null,"2.1.4","Has the person been subjected to and/or are they at risk of:\n - physical abuse\n - psychological abuse\n - sexual abuse\n - financial abuse\n - exploitation","Please select from list"]
[null,null,"What actions are being taken to ensure they are supported and how is this being monitored and managed?","Provide details:"]
[null,2.2000000000000002,"Safeguarding and Patient Safety Incidents"]
[null,"2.2.1","Has the person been the subject of any safeguarding concerns?","Please select from list"]
[null,null,"Has a referral been made?","Please select from list"]
[null,"2.2.2","Has the person been the subject of any patient safety incidents?","Please select from list"]
[null,null,"Has the Care Plan and risk assessments been updated to reflect this?","Please select from list"]
[null,"2.2.3","In respect of the answers to the above questions, if learning disability and/or autism are a contributing factor to the risk, what actions are being taken to understand and manage this?","Provide details:"]
[null,2.2999999999999998,"Use of Restraint, Seclusion and Segregation"]
[null,"2.3.1","If PRN medication, restraint and seclusion are used, is there evidence that the least restrictive approach possible is used?","Please select from list"]
[null,"2.3.2","Is restraint used as part of the person's treatment:","Please select from list"]
[null,null," - is there a care plan to specify how restraint should be used?","Please select from list"]
[null,null," - is it proportionate to the risk? ","Please select from list"]
[null,null," - is it being followed? ","Please select from list"]
[null,null," - does it link to other relevant care plans","Please select from list"]
[null,null," - is it reviewed to ensure least restrictive practice?","Please select from list"]
[null,"2.3.4","Is there a Care plan which utilises an agreed approach to supporting people in distress? ","Please select from list"]
[null,null,"Is the Care plan implemented?","Please select from list"]
[null,null,"Is the Care plan effective?","Please select from list"]
[null,"2.3.5","Does the person’s care and treatment plan show a positive approach to risk? What does this involve?","Please select from list"]
[null,2.4,"Supporting the Person's Rights"]
[null,"2.4.1","Who is involved in protecting and supporting the person’s rights such as choice, equality, contact with family, advocacy, quality of life, culture and beliefs (e.g. the person, carers, professionals including advocacy, health, social care, legal)","Provide details:"]
[null,"2.4.2","Have the recommendations from any previous CTR's been actioned? ","Please select from list"]
[null,null,"Please highlight any outstanding actions and why they haven't been followed up","Provide details:"]
[]
[null,"Level of Confidence in care provision following review of Safety & Risk",null,"Please select from list"]
[]
[null,{"$f":"Views!B40","v":"Ref"},{"$f":"Views!C40","v":"Nature of Concern"},{"$f":"Views!D40","v":"Action"},{"$f":"Views!E40","v":"Desired Outcome"},{"$f":"Views!F40","v":"Date for Completion (dd/mm/yyyy)"},{"$f":"Views!G40","v":"Name of Person Responsible"}]
[null,"B1"]
[null,"B2"]
[null,"B3"]
[null,"B4"]
[null,"B5"]
[null,"B6"]

{"sheet":"Current Care Package","index":4,"n_rows":37,"n_cols":7,"rows_kept":37,"cut":false,"hidden":false,"merged":[[0,0,0,4],[1,1,1,4],[28,1,28,2],[4,1,4,4],[6,2,6,3],[20,2,20,3]]}
["STEP 3: Key Lines of Enquiry (KLOE) to support review of existing Care Package"]
[]
[]
[]
[null,"Please ensure that where a concern is highlighted, it is added to the table below to help form the final action plan"]
[null,"Ref:","KLOEs to Support Review ","Responses","Comments & Actions"]
[null,3.1,"Is the Person Receiving the Right Care and Treatment in the Community?"]
[null,"3.1.1","Provide a brief description of the current care package","    Provide details:"]
[null,"3.1.2","And are there regular reviews in place that are attended by everyone involved in the person's care?","    Provide details:"]
[null,"3.1.3","Is the person receiving the full care and support that has been commissioned for them?","Please select from list"]
[null,"3.1.4","Is the person receiving the full range of appropriate interventions and support relevant to their diagnosis and treatment plan?","Please select from list"]
[null,"3.1.5","What are the identified difficulties with the current care package?\ne.g. delivery difficulties? change in clinical need?","    Provide details:"]
[null,"3.1.6","Are there other services that could provide additional or alternate expertise and support?","Please select from list"]
[null,"3.1.7","Has the person had a communication assessment?  ","Please select from list"]
[null,null,"Are any identified communication needs being met as part of the Care Package?  ","Please select from list"]
[null,null,"Is an assessment required?","Please select from list"]
[null,"3.1.8","Has the person had a sensory assessment?","Please select from list"]
[null,null,"Are their identified sensory needs being me as part of the Care Package?  ","Please select from list"]
[null,null,"Is an assessment required?","Please select from list"]
[null,"3.1.9","Is there a clear and active Positive Behavioural Support plan?","Please select from list"]
[null,3.2,"Is Hospital Admission Absolutely Necessary?"]
[null,"3.2.1","Why is hospital admission being considered?\nIs there a clinical reason? Or is it a breakdown in care or support?","    Provide details:"]
[null,"3.2.2","If the person were to be admitted to hospital is there a clear assessment, care and treatment plan including expected outcomes and timescales?","    Provide details:"]
[null,"3.2.3","Does the hospital have the skills and resources needed to meet the goals and targets outlined in the plan?","Please select from list"]
[null,"3.2.4","Why is it not possible for the assessment, care and treatment planned to be safely carried out in the community?","    Provide details:"]
[null,"3.2.5","Is there a risk that hospital admission may make the person's problems worse?","Please select from list"]
[null,"3.2.6","Is there an intention to seek admission under the Mental Health Act?  If so, why?","Please select from list"]
[]
[null,"Level of Confidence in care provision following review of the existing Care Package",null,"Please select from list"]
[]
[null,{"$f":"'Risks & Issues'!B42","v":"Ref"},{"$f":"'Risks & Issues'!C42","v":"Nature of Concern"},{"$f":"'Risks & Issues'!D42","v":"Action"},{"$f":"'Risks & Issues'!E42","v":"Desired Outcome"},{"$f":"'Risks & Issues'!F42","v":"Date for Completion (dd/mm/yyyy)"},{"$f":"'Risks & Issues'!G42","v":"Name of Person Responsible"}]
[null,"C1"]
[null,"C2"]
[null,"C3"]
[null,"C4"]
[null,"C5"]
[null,"C6"]

{"sheet":"Action Summary","index":5,"n_rows":51,"n_cols":7,"rows_kept":51,"cut":false,"hidden":false,"merged":[[9,1,9,2],[0,0,0,7],[5,1,5,3],[6,1,6,3],[7,1,7,3],[4,1,4,4],[1,1,1,4],[2,1,2,4],[29,2,29,3],[47,3,47,6],[48,3,48,6],[49,3,49,6],[50,3,50,6],[38,2,38,6],[45,4,45,6]]}
["STEP 4: SUMMARY"]
[null,"Some of the information on this page is filled in from other pages"]
[null,"If you need to make changes, please update the information on other pages"]
[]
[null,"Engagement Record (this section auto-populates when questions are answered on the View tab)"]
[null,"Did the person engage in the assessment personally by answering questions?",null,null,{"$f":"Views!D5","v":"Please select from list"}]
[null,"Did the person's family engage in the assessment?",null,null,{"$f":"Views!D8","v":"Please select from list"}]
[null,"Did the person have an advocate who engaged in the assessment?",null,null,{"$f":"Views!D11","v":"Please select from list"}]
[]
[null,"Nature of Concern",null,"Action","Desired Outcome","Date for Completion\n(dd/mm/yyyy)","Name of Person Responsible"]
[null,{"$f":"Views!B41","v":"A1"},{"$f":"Views!C41","v":0},{"$f":"Views!D41","v":0},{"$f":"Views!E41","v":0},{"$f":"Views!F41","v":"00:00:00"},{"$f":"Views!G41","v":0}]
[null,{"$f":"Views!B42","v":"A2"},{"$f":"Views!C42","v":0},{"$f":"Views!D42","v":0},{"$f":"Views!E42","v":0},{"$f":"Views!F42","v":"00:00:00"},{"$f":"Views!G42","v":0}]
[null,{"$f":"Views!B43","v":"A3"},{"$f":"Views!C43","v":0},{"$f":"Views!D43","v":0},{"$f":"Views!E43","v":0},{"$f":"Views!F43","v":"00:00:00"},{"$f":"Views!G43","v":0}]
[null,{"$f":"Views!B44","v":"A4"},{"$f":"Views!C44","v":0},{"$f":"Views!D44","v":0},{"$f":"Views!E44","v":0},{"$f":"Views!F44","v":"00:00:00"},{"$f":"Views!G44","v":0}]
[null,{"$f":"Views!B45","v":"A5"},{"$f":"Views!C45","v":0},{"$f":"Views!D45","v":0},{"$f":"Views!E45","v":0},{"$f":"Views!F45","v":"00:00:00"},{"$f":"Views!G45","v":0}]
[null,{"$f":"Views!B46","v":"A6"},{"$f":"Views!C46","v":0},{"$f":"Views!D46","v":0},{"$f":"Views!E46","v":0},{"$f":"Views!F46","v":"00:00:00"},{"$f":"Views!G46","v":0}]
[null,{"$f":"'Risks & Issues'!B43","v":"B1"},{"$f":"'Risks & Issues'!C43","v":0},{"$f":"'Risks & Issues'!D43","v":0},{"$f":"'Risks & Issues'!E43","v":0},{"$f":"'Risks & Issues'!F43","v":"00:00:00"},{"$f":"'Risks & Issues'!G43","v":0}]
[null,{"$f":"'Risks & Issues'!B44","v":"B2"},{"$f":"'Risks & Issues'!C44","v":0},{"$f":"'Risks & Issues'!D44","v":0},{"$f":"'Risks & Issues'!E44","v":0},{"$f":"'Risks & Issues'!F44","v":"00:00:00"},{"$f":"'Risks & Issues'!G44","v":0}]
[null,{"$f":"'Risks & Issues'!B45","v":"B3"},{"$f":"'Risks & Issues'!C45","v":0},{"$f":"'Risks & Issues'!D45","v":0},{"$f":"'Risks & Issues'!E45","v":0},{"$f":"'Risks & Issues'!F45","v":"00:00:00"},{"$f":"'Risks & Issues'!G45","v":0}]
[null,{"$f":"'Risks & Issues'!B46","v":"B4"},{"$f":"'Risks & Issues'!C46","v":0},{"$f":"'Risks & Issues'!D46","v":0},{"$f":"'Risks & Issues'!E46","v":0},{"$f":"'Risks & Issues'!F46","v":"00:00:00"},{"$f":"'Risks & Issues'!G46","v":0}]
[null,{"$f":"'Risks & Issues'!B47","v":"B5"},{"$f":"'Risks & Issues'!C47","v":0},{"$f":"'Risks & Issues'!D47","v":0},{"$f":"'Risks & Issues'!E47","v":0},{"$f":"'Risks & Issues'!F47","v":"00:00:00"},{"$f":"'Risks & Issues'!G47","v":0}]
[null,{"$f":"'Risks & Issues'!B48","v":"B6"},{"$f":"'Risks & Issues'!C48","v":0},{"$f":"'Risks & Issues'!D48","v":0},{"$f":"'Risks & Issues'!E48","v":0},{"$f":"'Risks & Issues'!F48","v":"00:00:00"},{"$f":"'Risks & Issues'!G48","v":0}]
[null,{"$f":"'Current Care Package'!B32","v":"C1"},{"$f":"'Current Care Package'!C32","v":0},{"$f":"'Current Care Package'!D32","v":0},{"$f":"'Current Care Package'!E32","v":0},{"$f":"'Current Care Package'!F32","v":"00:00:00"},{"$f":"'Current Care Package'!G32","v":0}]
[null,{"$f":"'Current Care Package'!B33","v":"C2"},{"$f":"'Current Care Package'!C33","v":0},{"$f":"'Current Care Package'!D33","v":0},{"$f":"'Current Care Package'!E33","v":0},{"$f":"'Current Care Package'!F33","v":"00:00:00"},{"$f":"'Current Care Package'!G33","v":0}]
[null,{"$f":"'Current Care Package'!B34","v":"C3"},{"$f":"'Current Care Package'!C34","v":0},{"$f":"'Current Care Package'!D34","v":0},{"$f":"'Current Care Package'!E34","v":0},{"$f":"'Current Care Package'!F34","v":"00:00:00"},{"$f":"'Current Care Package'!G34","v":0}]
[null,{"$f":"'Current Care Package'!B35","v":"C4"},{"$f":"'Current Care Package'!C35","v":0},{"$f":"'Current Care Package'!D35","v":0},{"$f":"'Current Care Package'!E35","v":0},{"$f":"'Current Care Package'!F35","v":"00:00:00"},{"$f":"'Current Care Package'!G35","v":0}]
[null,{"$f":"'Current Care Package'!B36","v":"C5"},{"$f":"'Current Care Package'!C36","v":0},{"$f":"'Current Care Package'!D36","v":0},{"$f":"'Current Care Package'!E36","v":0},{"$f":"'Current Care Package'!F36","v":"00:00:00"},{"$f":"'Current Care Package'!G36","v":0}]
[null,{"$f":"'Current Care Package'!B37","v":"C6"},{"$f":"'Current Care Package'!C37","v":0},{"$f":"'Current Care Package'!D37","v":0},{"$f":"'Current Care Package'!E37","v":0},{"$f":"'Current Care Package'!F37","v":"00:00:00"},{"$f":"'Current Care Package'!G37","v":0}]
[]
[null,null,"Confidence ratings summary (this section auto-populates when corresponding tab is completed)"]
[null,null,"Level of Confidence in care provision following conversations with the person",{"$f":"Views!D35","v":"Please select from list"}]
[null,null,"Level of Confidence in care provision following conversations with family",{"$f":"Views!D36","v":"Please select from list"}]
[null,null,"Level of Confidence in care provision following conversations with the Advocate",{"$f":"Views!D37","v":"Please select from list"}]
[null,null,"Level of Confidence in care provision following conversations with the current care team",{"$f":"Views!D38","v":"Please select from list"}]
[null,null,"Level of Confidence in care provision following review of Safety & Risk",{"$f":"'Risks & Issues'!D40","v":"Please select from list"}]
[null,null,"Level of Confidence in care provision following review of Current Care Package",{"$f":"'Current Care Package'!D29","v":"Please select from list"}]
[]
[null,null,"Observations:"]
[null,null," "]
[]
[null,null,"Outcome:","Reason:"]
[null,null,"Please select from list","Please select from list"]
[null,null,"Reason:","Please provide details:"]
[null,null,"Alternative support not identified and person admitted to hospital"]
[null,null,"Due to:"]
[null,null,"Please select from list","Please provide details:"]
[null,null,"Further Questions:"]
[null,null,"What is to be achieved whilst the person is in hospital?"]
[null,null,"What is the timescale for this being achieved?"]
[null,null,"Will the person be able to return to their current home when discharged? \nIf not, what needs to happen for this to be possible?"]
[null,null,"Is there a clear formulation and rationale for a hospital admission with a treatment plan that cannot be delivered in the community?"]

{"sheet":"Print","index":6,"n_rows":697,"n_cols":2,"rows_kept":697,"cut":false,"hidden":false,"merged":[]}
[]
["Care, Education and Treatment Review"]
["Adult Community Key Lines of Enquiry"]
[]
["Why We Are Here"]
[]
[{"$f":"'Why we are here'!B7","v":"In advance of the CTR, who has spoken with the person, their family and their advocate about this review?"},{"$f":"'Why we are here'!C7","v":0}]
[]
[{"$f":"'Why we are here'!B8","v":"Who will be feeding back to the person, their family and their advocate after the review?"},{"$f":"'Why we are here'!C8","v":0}]
[]
[{"$f":"'Why we are here'!B9","v":"List any outstanding actions from the last CTR? "},{"$f":"'Why we are here'!C9","v":0}]
[]
[{"$f":"'Why we are here'!B11","v":"Information About The Person Being Reviewed:"}]
[]
[{"$f":"'Why we are here'!B12","v":"Person's CTR unique identifier"},{"$f":"'Why we are here'!C12","v":0}]
[]
[{"$f":"'Why we are here'!B13","v":"Responsible ICB"},{"$f":"'Why we are here'!C13","v":"Please select from list"}]
[]
[{"$f":"'Why we are here'!B14","v":"Basis of Consent for Review"},{"$f":"'Why we are here'!C14","v":"Please select from list"}]
[]
[{"$f":"'Why we are here'!B15","v":"Does the person have a learning disability?"},{"$f":"'Why we are here'!C15","v":"Please select from list"}]
[]
[{"$f":"'Why we are here'!B16","v":"Is the person autistic?"},{"$f":"'Why we are here'!C16","v":"Please select from list"}]
[]
[{"$f":"'Why we are here'!B17","v":"Does the person have a mental health diagnosis? If so, what is it?"},{"$f":"'Why we are here'!C17","v":0}]
[]
[{"$f":"'Why we are here'!B18","v":"Has there been a previous community CTR? "},{"$f":"'Why we are here'!C18","v":"Please select from list"}]
[]
[{"$f":"'Why we are here'!B19","v":"Date of previous community CTR?   (dd/mm/yyyy)"},{"$f":"'Why we are here'!C19","v":"00:00:00"}]
[]
[{"$f":"'Why we are here'!B20","v":"Has there been a previous inpatient CTR? "},{"$f":"'Why we are here'!C20","v":"Please select from list"}]
[]
[{"$f":"'Why we are here'!B21","v":"Date of previous inpatient CTR?   (dd/mm/yyyy)"},{"$f":"'Why we are here'!C21","v":"00:00:00"}]
[]
[{"$f":"'Why we are here'!B22","v":"What were the recommendations and findings of this/these CTR(s)?"},{"$f":"'Why we are here'!C22","v":0}]
[]
[{"$f":"'Why we are here'!B23","v":"What has triggered this CTR? \ninclude any relevant family history, education history etc. which could impact on the person's wellbeing"},{"$f":"'Why we are here'!C23","v":0}]
[]
[{"$f":"'Why we are here'!B25","v":"Information About The Panel:"}]
[]
[{"$f":"'Why we are here'!B26","v":"Date of Review   (dd/mm/yyyy)"},{"$f":"'Why we are here'!C26","v":"00:00:00"}]
[]
[{"$f":"'Why we are here'!B27","v":"Has the panel completed a CTR for the person before?"},{"$f":"'Why we are here'!C27","v":"Please select from list"}]
[]
[{"$f":"'Why we are here'!B28","v":"Chair   (responsible commissioner or person with delegated authority)"},{"$f":"'Why we are here'!C28","v":0}]
[]
[{"$f":"'Why we are here'!B29","v":"Independent expert by experience"},{"$f":"'Why we are here'!C29","v":0}]
[]
[{"$f":"'Why we are here'!B30","v":"Independent clinical expert"},{"$f":"'Why we are here'!C30","v":0}]
[]
[{"$f":"'Why we are here'!B31","v":"Other Panel member (eg. Pharmacist, MHA Reviewer from CQC)"},{"$f":"'Why we are here'!C31","v":0}]
[]
[{"$f":"'Why we are here'!B32","v":"Family members / siblings / carer"},{"$f":"'Why we are here'!C32","v":0}]
[]
[{"$f":"'Why we are here'!B33","v":"Advocate "},{"$f":"'Why we are here'!C33","v":0}]
[]
[{"$f":"'Why we are here'!B34","v":"Commissioner responsible for person's care"},{"$f":"'Why we are here'!C34","v":0}]
[]
[{"$f":"'Why we are here'!B35","v":"Responsible clinician"},{"$f":"'Why we are here'!C35","v":0}]
[]
[{"$f":"'Why we are here'!B36","v":"Senior nurse / clinical staff"},{"$f":"'Why we are here'!C36","v":0}]
[]
[{"$f":"'Why we are here'!B37","v":"Social Care Professional e.g social worker"},{"$f":"'Why we are here'!C37","v":0}]
[]
[{"$f":"'Why we are here'!B38","v":"Other (specify)"},{"$f":"'Why we are here'!C38","v":0}]
[]
[{"$f":"'Why we are here'!B39","v":"Other (specify)"},{"$f":"'Why we are here'!C39","v":0}]
[]
[{"$f":"'Why we are here'!B40","v":"Is the experience and expertise of those attending Panel today appropriate to enable a decision to be made in this case today? If not, what steps have been taken to ensure this happens?"},{"$f":"'Why we are here'!C40","v":0}]
[]
[{"$f":"'Why we are here'!B41","v":"Important parties who did not attend the review:"},{"$f":"'Why we are here'!C41","v":0}]
[]
[{"$f":"'Why we are here'!B43","v":"DSR Information:"}]
[]
[{"$f":"'Why we are here'!B44","v":"Name of lead professional responsible for care plan"},{"$f":"'Why we are here'!C44","v":0}]
[]
[{"$f":"'Why we are here'!B45","v":"Date of last review of care plans and risk assessment"},{"$f":"'Why we are here'!C45","v":"00:00:00"}]
[]
[{"$f":"'Why we are here'!B46","v":"DSR RAG rating prior to today's CTR"},{"$f":"'Why we are here'!C46","v":"Please select from list"}]
[]
[{"$f":"'Why we are here'!B47","v":"DSR RAG rating assessed today (NB. update DSR if different than previously)"},{"$f":"'Why we are here'!C47","v":"Please select from list"}]
[]
[{"$f":"'Why we are here'!B48","v":"Date of most recent consent for inclusion on DSR"},{"$f":"'Why we are here'!C48","v":"00:00:00"}]
[]
[{"$f":"'Why we are here'!B50","v":"Summary:            (please note this information will auto-populate when the Action Summary is completed)"}]
[]
[{"$f":"'Why we are here'!B51","v":"Outcome of CTR:"},{"$f":"'Why we are here'!C51","v":"Please select from list"}]
[]
["Views"]
[]
[{"$f":"Views!C4","v":"Is there a communication passport or other means of ensuring people know how best to communicate and engage with the person?"},{"$f":"Views!D4","v":"Please select from list"}]
[]
[{"$f":"Views!C5","v":"Has the person been part of this CTR?"},{"$f":"Views!D5","v":"Please select from list"}]
[]
[{"$f":"Views!C6","v":"If not, why not?"},{"$f":"Views!D6","v":0}]
[]
[{"$f":"Views!C7","v":"Who assisted them to provide their views and what is their relationship with the person?"},{"$f":"Views!D7","v":0}]
[]
[{"$f":"Views!C8","v":"Have the person's family been part of this CTR?"},{"$f":"Views!D8","v":"Please select from list"}]
[]
[{"$f":"Views!C9","v":"Name of family member(s) and their relationship to the person:"},{"$f":"Views!D9","v":0}]
[]
[{"$f":"Views!C10","v":"If not, why not?"},{"$f":"Views!D10","v":0}]
[]
[{"$f":"Views!C11","v":"Has the person's advocate been part of the CTR?"},{"$f":"Views!D11","v":"Please select from list"}]
[]
[{"$f":"Views!C12","v":"If not, why not?"},{"$f":"Views!D12","v":0}]
[]
[{"$f":"Views!C13","v":"Name of advocate"},{"$f":"Views!D13","v":0}]
[]
[{"$f":"Views!C14","v":"Type of advocate"},{"$f":"Views!D14","v":0}]
[]
[{"$f":"Views!C18","v":"Safety"}]
[]
[{"$f":"Views!C19","v":"Does the person feel safe?  \nAre there any concens around harm to themselves or others?"}]
[null,{"$f":"Views!D17","v":"Views of the person and any concerns"}]
[null,{"$f":"Views!D19","v":0}]
[]
[null,{"$f":"Views!E17","v":"Views of the family or carer and any concerns"}]
[null,{"$f":"Views!E19","v":0}]
[]
[null,{"$f":"Views!F17","v":"Views of the advocate and any concerns"}]
[null,{"$f":"Views!F19","v":0}]
[]
[null,{"$f":"Views!G17","v":"Views of the current care team and any concerns"}]
[null,{"$f":"Views!G19","v":0}]
[]
[null,{"$f":"Views!H17","v":"Summary of any concerns highlighted (please also populate the table below)"}]
[null,{"$f":"Views!H19","v":0}]
[]
[{"$f":"Views!C20","v":"Medication"}]
[]
[{"$f":"Views!C21","v":"Does the person have an understanding of what their medications are for?\nAre medications taken regularly?\nDoes the person think that the medication is helping them to feel well?\nDoes the person experience any side effects from the medication?\tAre there clear treatment timescales and regular reviews?"}]
[null,{"$f":"B116","v":"Views of the person and any concerns"}]
[null,{"$f":"Views!D21","v":0}]
[]
[null,{"$f":"B119","v":"Views of the family or carer and any concerns"}]
[null,{"$f":"Views!E21","v":0}]
[]
[null,{"$f":"B122","v":"Views of the advocate and any concerns"}]
[null,{"$f":"Views!F21","v":0}]
[]
[null,{"$f":"B125","v":"Views of the current care team and any concerns"}]
[null,{"$f":"Views!G21","v":0}]
[]
[null,{"$f":"B128","v":"Summary of any concerns highlighted (please also populate the table below)"}]
[null,{"$f":"Views!H21","v":0}]
[]
[{"$f":"Views!C22","v":"Physical Health"}]
[]
[{"$f":"Views!C23","v":"Is the person worried about any changes to their health? e.g. weight, eyesight, hearing, teeth? Have there been any recent hospital visits?\nIs the person eating and drinking normally and having a varied diet?\nDoes the person sleep well?\nAre their care plans up to date? Do they have any additional physical health needs or long term conditions?"}]
[null,{"$f":"B134","v":"Views of the person and any concerns"}]
[null,{"$f":"Views!D23","v":0}]
[]
[null,{"$f":"B137","v":"Views of the family or carer and any concerns"}]
[null,{"$f":"Views!E23","v":0}]
[]
[null,{"$f":"B140","v":"Views of the advocate and any concerns"}]
[null,{"$f":"Views!F23","v":0}]
[]
[null,{"$f":"B143","v":"Views of the current care team and any concerns"}]
[null,{"$f":"Views!G23","v":0}]
[]
[null,{"$f":"B146","v":"Summary of any concerns highlighted (please also populate the table below)"}]
[null,{"$f":"Views!H23","v":0}]
[]
[{"$f":"Views!C24","v":"Mental Health "}]
[]
[{"$f":"Views!C25","v":"Is the person feeling sad or anxious?\nDoes this stop the person doing things or seeing people or impact on their day to day life?\nAre there any additional mental health needs? "}]
[null,{"$f":"B152","v":"Views of the person and any concerns"}]
[null,{"$f":"Views!D25","v":0}]
[]
[null,{"$f":"B155","v":"Views of the family or carer and any concerns"}]
[null,{"$f":"Views!E25","v":0}]
[]
[null,{"$f":"B158","v":"Views of the advocate and any concerns"}]
[null,{"$f":"Views!F25","v":0}]
[]
[null,{"$f":"B161","v":"Views of the current care team and any concerns"}]
[null,{"$f":"Views!G25","v":0}]
[]
[null,{"$f":"B164","v":"Summary of any concerns highlighted (please also populate the table below)"}]
[null,{"$f":"Views!H25","v":0}]
[]
[{"$f":"Views!C26","v":"Personal Care needs"}]
[]
[{"$f":"Views!C27","v":"Does the person require support to attend to their personbal care needs eg- Washing, dressing? \nDoes the person have everything they need to be able to look after their personal care? Eg- clothes and shoes? "}]
[null,{"$f":"B170","v":"Views of the person and any concerns"}]
[null,{"$f":"Views!D27","v":0}]
[]
[null,{"$f":"B173","v":"Views of the family or carer and any concerns"}]
[null,{"$f":"Views!E27","v":0}]
[]
[null,{"$f":"B176","v":"Views of the advocate and any concerns"}]
[null,{"$f":"Views!F27","v":0}]
[]
[null,{"$f":"B179","v":"Views of the current care team and any concerns"}]
[null,{"$f":"Views!G27","v":0}]
[]
[null,{"$f":"B182","v":"Summary of any concerns highlighted (please also populate the table below)"}]
[null,{"$f":"Views!H27","v":0}]
[]
[{"$f":"Views!C28","v":"Advocacy"}]
[]
[{"$f":"Views!C29","v":"Does the person have access to an advocate? Does the person speak openly about their thoughts and feelings?  Do you feel the person is getting all the advocacy support they need? If not, what would help? "}]
[null,{"$f":"B188","v":"Views of the person and any concerns"}]
[null,{"$f":"Views!D29","v":0}]
[]
[null,{"$f":"B191","v":"Views of the family or carer and any concerns"}]
[null,{"$f":"Views!E29","v":0}]
[]
[null,{"$f":"B194","v":"Views of the advocate and any concerns"}]
[null,{"$f":"Views!F29","v":0}]
[]
[null,{"$f":"B197","v":"Views of the current care team and any concerns"}]
[null,{"$f":"Views!G29","v":0}]
[]
[null,{"$f":"B200","v":"Summary of any concerns highlighted (please also populate the table below)"}]
[null,{"$f":"Views!H29","v":0}]
[]
[{"$f":"Views!C30","v":"Quality of Life"}]
[]
[{"$f":"Views!C31","v":"Does the person spend time with family and friends?\nDoes the person feel valued and respected?\nDo they feel people treat them well? \nWhat activities do they enjoy doing?\nHow often do they do things they like? \nIs the person supported to express their religious and cultural beliefs?"}]
[null,{"$f":"B206","v":"Views of the person and any concerns"}]
[null,{"$f":"Views!D31","v":0}]
[]
[null,{"$f":"B209","v":"Views of the family or carer and any concerns"}]
[null,{"$f":"Views!E31","v":0}]
[]
[null,{"$f":"B212","v":"Views of the advocate and any concerns"}]
[null,{"$f":"Views!F31","v":0}]
[]
[null,{"$f":"B215","v":"Views of the current care team and any concerns"}]
[null,{"$f":"Views!G31","v":0}]
[]
[null,{"$f":"B218","v":"Summary of any concerns highlighted (please also populate the table below)"}]
[null,{"$f":"Views!H31","v":0}]
[]
[{"$f":"Views!C32","v":"Accommodation"}]
[]
[{"$f":"Views!C33","v":"Is there anything the person wants to change about their current living environment?\nIs there anything that could help them live more independently? Eg- adaptations to the environment? Would the person be able to return to their current accomodation if they were admitted to hospital?\n"}]
[null,{"$f":"B224","v":"Views of the person and any concerns"}]
[null,{"$f":"Views!D33","v":0}]
[]
[null,{"$f":"B227","v":"Views of the family or carer and any concerns"}]
[null,{"$f":"Views!E33","v":0}]
[]
[null,{"$f":"B230","v":"Views of the advocate and any concerns"}]
[null,{"$f":"Views!F33","v":0}]
[]
[null,{"$f":"B233","v":"Views of the current care team and any concerns"}]
[null,{"$f":"Views!G33","v":0}]
[]
[null,{"$f":"B236","v":"Summary of any concerns highlighted (please also populate the table below)"}]
[null,{"$f":"Views!H33","v":0}]
[]
[{"$f":"Views!C35","v":"Level of Confidence in care provision following conversations with the person"},{"$f":"Views!D35","v":"Please select from list"}]
[{"$f":"Views!C36","v":"Level of Confidence in care provision following conversations with family"},{"$f":"Views!D36","v":"Please select from list"}]
[{"$f":"Views!C37","v":"Level of Confidence in care provision following conversations with the advocate"},{"$f":"Views!D37","v":"Please select from list"}]
[{"$f":"Views!C38","v":"Level of Confidence in care provision following conversations with the care team"},{"$f":"Views!D38","v":"Please select from list"}]
[]
[{"$f":"Views!B40","v":"Ref"}]
[]
[{"$f":"Views!B41","v":"A1"},{"$f":"Views!C40","v":"Nature of Concern"}]
[null,{"$f":"Views!C41","v":0}]
[]
[null,{"$f":"Views!D40","v":"Action"}]
[null,{"$f":"Views!D41","v":0}]
[]
[null,{"$f":"Views!E40","v":"Desired Outcome"}]
[null,{"$f":"Views!E41","v":0}]
[]
[null,{"$f":"Views!F40","v":"Date for Completion (dd/mm/yyyy)"}]
[null,{"$f":"Views!F41","v":"00:00:00"}]
[]
[null,{"$f":"Views!G40","v":"Name of Person Responsible"}]
[null,{"$f":"Views!G41","v":0}]
[]
[{"$f":"Views!B42","v":"A2"},{"$f":"B264","v":"Nature of Concern"}]
[null,{"$f":"Views!C42","v":0}]
[]
[null,{"$f":"B267","v":"Action"}]
[null,{"$f":"Views!D42","v":0}]
[]
[null,{"$f":"B270","v":"Desired Outcome"}]
[null,{"$f":"Views!E42","v":0}]
[]
[null,{"$f":"B273","v":"Date for Completion (dd/mm/yyyy)"}]
[null,{"$f":"Views!F42","v":"00:00:00"}]
[]
[null,{"$f":"B276","v":"Name of Person Responsible"}]
[null,{"$f":"Views!G42","v":0}]
[]
[{"$f":"Views!B43","v":"A3"},{"$f":"B279","v":"Nature of Concern"}]
[null,{"$f":"Views!C43","v":0}]
[]
[null,{"$f":"B282","v":"Action"}]
[null,{"$f":"Views!D43","v":0}]
[]
[null,{"$f":"B285","v":"Desired Outcome"}]
[null,{"$f":"Views!E43","v":0}]
[]
[null,{"$f":"B288","v":"Date for Completion (dd/mm/yyyy)"}]
[null,{"$f":"Views!F43","v":"00:00:00"}]
[]
[null,{"$f":"B291","v":"Name of Person Responsible"}]
[null,{"$f":"Views!G43","v":0}]
[]
[{"$f":"Views!B44","v":"A4"},{"$f":"B294","v":"Nature of Concern"}]
[null,{"$f":"Views!C44","v":0}]
[]
[null,{"$f":"B297","v":"Action"}]
[null,{"$f":"Views!D44","v":0}]
[]
[null,{"$f":"B300","v":"Desired Outcome"}]
[null,{"$f":"Views!E44","v":0}]
[]
[null,{"$f":"B303","v":"Date for Completion (dd/mm/yyyy)"}]
[null,{"$f":"Views!F44","v":"00:00:00"}]
[]
[null,{"$f":"B306","v":"Name of Person Responsible"}]
[null,{"$f":"Views!G44","v":0}]
[]
[{"$f":"Views!B45","v":"A5"},{"$f":"B309","v":"Nature of Concern"}]
[null,{"$f":"Views!C45","v":0}]
[]
[null,{"$f":"B312","v":"Action"}]
[null,{"$f":"Views!D45","v":0}]
[]
[null,{"$f":"B315","v":"Desired Outcome"}]
[null,{"$f":"Views!E45","v":0}]
[]
[null,{"$f":"B318","v":"Date for Completion (dd/mm/yyyy)"}]
[null,{"$f":"Views!F45","v":"00:00:00"}]
[]
[null,{"$f":"B321","v":"Name of Person Responsible"}]
[null,{"$f":"Views!G45","v":0}]
[]
[{"$f":"Views!B46","v":"A6"},{"$f":"B324","v":"Nature of Concern"}]
[null,{"$f":"Views!C46","v":0}]
[]
[null,{"$f":"B327","v":"Action"}]
[null,{"$f":"Views!D46","v":0}]
[]
[null,{"$f":"B330","v":"Desired Outcome"}]
[null,{"$f":"Views!E46","v":0}]
[]
[null,{"$f":"B333","v":"Date for Completion (dd/mm/yyyy)"}]
[null,{"$f":"Views!F46","v":"00:00:00"}]
[]
[null,{"$f":"B336","v":"Name of Person Responsible"}]
[null,{"$f":"Views!G46","v":0}]
[]
["Risks & Issues"]
[]
[{"$f":"'Risks & Issues'!C7","v":"Risk of Harm to the Person and Others"},{"$f":"'Risks & Issues'!E7","v":0}]
[]
[{"$f":"'Risks & Issues'!C8","v":"Is there a clear and detailed, up-to-date risk assessment in place which takes into account the views of the person, their family and community staff?"}]
[{"$f":"'Risks & Issues'!D8","v":"Please select from list"},{"$f":"'Risks & Issues'!E8","v":0}]
[]
[{"$f":"'Risks & Issues'!C9","v":"Does the person pose a risk of harm to themselves?"}]
[{"$f":"'Risks & Issues'!D9","v":"Please select from list"},{"$f":"'Risks & Issues'!E9","v":0}]
[]
[{"$f":"'Risks & Issues'!C10","v":"What is the nature of the harm?"}]
[{"$f":"'Risks & Issues'!D10","v":"Provide details:"},{"$f":"'Risks & Issues'!E10","v":0}]
[]
[{"$f":"'Risks & Issues'!C14","v":"What is being done to minimise the risk?"}]
[{"$f":"'Risks & Issues'!D14","v":"Provide details:"},{"$f":"'Risks & Issues'!E14","v":0}]
[]
[{"$f":"'Risks & Issues'!C12","v":"Does the person pose a risk of harm to others?"}]
[{"$f":"'Risks & Issues'!D12","v":"Please select from list"},{"$f":"'Risks & Issues'!E12","v":0}]
[]
[{"$f":"'Risks & Issues'!C13","v":"What is the nature of the harm?"}]
[{"$f":"'Risks & Issues'!D13","v":"Provide details:"},{"$f":"'Risks & Issues'!E13","v":0}]
[]
[{"$f":"'Risks & Issues'!C14","v":"What is being done to minimise the risk?"}]
[{"$f":"'Risks & Issues'!D14","v":"Provide details:"},{"$f":"'Risks & Issues'!E14","v":0}]
[]
[{"$f":"'Risks & Issues'!C15","v":"Has the person been subjected to and/or are they at risk of:\n - physical abuse\n - psychological abuse\n - sexual abuse\n - financial abuse\n - exploitation"}]
[{"$f":"'Risks & Issues'!D15","v":"Please select from list"},{"$f":"'Risks & Issues'!E15","v":0}]
[]
[{"$f":"'Risks & Issues'!C16","v":"What actions are being taken to ensure they are supported and how is this being monitored and managed?"}]
[{"$f":"'Risks & Issues'!D16","v":"Provide details:"},{"$f":"'Risks & Issues'!E16","v":0}]
[]
[{"$f":"'Risks & Issues'!C17","v":"Safeguarding and Patient Safety Incidents"},{"$f":"'Risks & Issues'!E17","v":0}]
[]
[{"$f":"'Risks & Issues'!C18","v":"Has the person been the subject of any safeguarding concerns?"}]
[{"$f":"'Risks & Issues'!D18","v":"Please select from list"},{"$f":"'Risks & Issues'!E18","v":0}]
[]
[{"$f":"'Risks & Issues'!C19","v":"Has a referral been made?"}]
[{"$f":"'Risks & Issues'!D19","v":"Please select from list"},{"$f":"'Risks & Issues'!E19","v":0}]
[]
[{"$f":"'Risks & Issues'!C20","v":"Has the person been the subject of any patient safety incidents?"}]
[{"$f":"'Risks & Issues'!D20","v":"Please select from list"},{"$f":"'Risks & Issues'!E20","v":0}]
[]
[{"$f":"'Risks & Issues'!C21","v":"Has the Care Plan and risk assessments been updated to reflect this?"}]
[{"$f":"'Risks & Issues'!D21","v":"Please select from list"},{"$f":"'Risks & Issues'!E21","v":0}]
[]
[{"$f":"'Risks & Issues'!C22","v":"In respect of the answers to the above questions, if learning disability and/or autism are a contributing factor to the risk, what actions are being taken to understand and manage this?"}]
[{"$f":"'Risks & Issues'!D22","v":"Provide details:"},{"$f":"'Risks & Issues'!E22","v":0}]
[]
[{"$f":"'Risks & Issues'!C23","v":"Use of Restraint, Seclusion and Segregation"},{"$f":"'Risks & Issues'!E23","v":0}]
[]
[{"$f":"'Risks & Issues'!C24","v":"If PRN medication, restraint and seclusion are used, is there evidence that the least restrictive approach possible is used?"}]
[{"$f":"'Risks & Issues'!D24","v":"Please select from list"},{"$f":"'Risks & Issues'!E24","v":0}]
[]
[{"$f":"'Risks & Issues'!C25","v":"Is restraint used as part of the person's treatment:"}]
[{"$f":"'Risks & Issues'!D25","v":"Please select from list"},{"$f":"'Risks & Issues'!E25","v":0}]
[]
[{"$f":"'Risks & Issues'!C26","v":" - is there a care plan to specify how restraint should be used?"}]
[{"$f":"'Risks & Issues'!D26","v":"Please select from list"},{"$f":"'Risks & Issues'!E26","v":0}]
[]
[{"$f":"'Risks & Issues'!C27","v":" - is it proportionate to the risk? "}]
[{"$f":"'Risks & Issues'!D27","v":"Please select from list"},{"$f":"'Risks & Issues'!E27","v":0}]
[]
[{"$f":"'Risks & Issues'!C28","v":" - is it being followed? "}]
[{"$f":"'Risks & Issues'!D28","v":"Please select from list"},{"$f":"'Risks & Issues'!E28","v":0}]
[]
[{"$f":"'Risks & Issues'!C29","v":" - does it link to other relevant care plans"}]
[{"$f":"'Risks & Issues'!D29","v":"Please select from list"},{"$f":"'Risks & Issues'!E29","v":0}]
[]
[{"$f":"'Risks & Issues'!C30","v":" - is it reviewed to ensure least restrictive practice?"}]
[{"$f":"'Risks & Issues'!D30","v":"Please select from list"},{"$f":"'Risks & Issues'!E30","v":0}]
[]
[{"$f":"'Risks & Issues'!C31","v":"Is there a Care plan which utilises an agreed approach to supporting people in distress? "}]
[{"$f":"'Risks & Issues'!D31","v":"Please select from list"},{"$f":"'Risks & Issues'!E31","v":0}]
[]
[{"$f":"'Risks & Issues'!C32","v":"Is the Care plan implemented?"}]
[{"$f":"'Risks & Issues'!D32","v":"Please select from list"},{"$f":"'Risks & Issues'!E32","v":0}]
[]
[{"$f":"'Risks & Issues'!C33","v":"Is the Care plan effective?"}]
[{"$f":"'Risks & Issues'!D33","v":"Please select from list"},{"$f":"'Risks & Issues'!E33","v":0}]
[]
[{"$f":"'Risks & Issues'!C34","v":"Does the person’s care and treatment plan show a positive approach to risk? What does this involve?"}]
[{"$f":"'Risks & Issues'!D34","v":"Please select from list"},{"$f":"'Risks & Issues'!E34","v":0}]
[]
[{"$f":"'Risks & Issues'!C35","v":"Supporting the Person's Rights"},{"$f":"'Risks & Issues'!E35","v":0}]
[]
[{"$f":"'Risks & Issues'!C36","v":"Who is involved in protecting and supporting the person’s rights such as choice, equality, contact with family, advocacy, quality of life, culture and beliefs (e.g. the person, carers, professionals including advocacy, health, social care, legal)"}]
[{"$f":"'Risks & Issues'!D36","v":"Provide details:"},{"$f":"'Risks & Issues'!E36","v":0}]
[]
[{"$f":"'Risks & Issues'!C37","v":"Have the recommendations from any previous CTR's been actioned? "}]
[{"$f":"'Risks & Issues'!D37","v":"Please select from list"},{"$f":"'Risks & Issues'!E37","v":0}]
[]
[{"$f":"'Risks & Issues'!C38","v":"Please highlight any outstanding actions and why they haven't been followed up"}]
[{"$f":"'Risks & Issues'!D38","v":"Provide details:"},{"$f":"'Risks & Issues'!E38","v":0}]
[]
[{"$f":"'Risks & Issues'!B40","v":"Level of Confidence in care provision following review of Safety & Risk"},{"$f":"'Risks & Issues'!D40","v":"Please select from list"}]
[]
[{"$f":"'Risks & Issues'!B42","v":"Ref"}]
[]
[{"$f":"'Risks & Issues'!B43","v":"B1"},{"$f":"'Risks & Issues'!C42","v":"Nature of Concern"}]
[null,{"$f":"'Risks & Issues'!C43","v":0}]
[]
[null,{"$f":"'Risks & Issues'!D42","v":"Action"}]
[null,{"$f":"'Risks & Issues'!D43","v":0}]
[]
[null,{"$f":"'Risks & Issues'!E42","v":"Desired Outcome"}]
[null,{"$f":"'Risks & Issues'!E43","v":0}]
[]
[null,{"$f":"'Risks & Issues'!F42","v":"Date for Completion (dd/mm/yyyy)"}]
[null,{"$f":"'Risks & Issues'!F43","v":"00:00:00"}]
[]
[null,{"$f":"'Risks & Issues'!G42","v":"Name of Person Responsible"}]
[null,{"$f":"'Risks & Issues'!G43","v":0}]
[]
[{"$f":"'Risks & Issues'!B44","v":"B2"},{"$f":"B452","v":"Nature of Concern"}]
[null,{"$f":"'Risks & Issues'!C44","v":0}]
[]
[null,{"$f":"B455","v":"Action"}]
[null,{"$f":"'Risks & Issues'!D44","v":0}]
[]
[null,{"$f":"B458","v":"Desired Outcome"}]
[null,{"$f":"'Risks & Issues'!E44","v":0}]
[]
[null,{"$f":"B461","v":"Date for Completion (dd/mm/yyyy)"}]
[null,{"$f":"'Risks & Issues'!F44","v":"00:00:00"}]
[]
[null,{"$f":"B464","v":"Name of Person Responsible"}]
[null,{"$f":"'Risks & Issues'!G44","v":0}]
[]
[{"$f":"'Risks & Issues'!B45","v":"B3"},{"$f":"B467","v":"Nature of Concern"}]
[null,{"$f":"'Risks & Issues'!C45","v":0}]
[]
[null,{"$f":"B470","v":"Action"}]
[null,{"$f":"'Risks & Issues'!D45","v":0}]
[]
[null,{"$f":"B473","v":"Desired Outcome"}]
[null,{"$f":"'Risks & Issues'!E45","v":0}]
[]
[null,{"$f":"B476","v":"Date for Completion (dd/mm/yyyy)"}]
[null,{"$f":"'Risks & Issues'!F45","v":"00:00:00"}]
[]
[null,{"$f":"B479","v":"Name of Person Responsible"}]
[null,{"$f":"'Risks & Issues'!G45","v":0}]
[]
[{"$f":"'Risks & Issues'!B46","v":"B4"},{"$f":"B482","v":"Nature of Concern"}]
[null,{"$f":"'Risks & Issues'!C46","v":0}]
[]
[null,{"$f":"B485","v":"Action"}]
[null,{"$f":"'Risks & Issues'!D46","v":0}]
[]
[null,{"$f":"B488","v":"Desired Outcome"}]
[null,{"$f":"'Risks & Issues'!E46","v":0}]
[]
[null,{"$f":"B491","v":"Date for Completion (dd/mm/yyyy)"}]
[null,{"$f":"'Risks & Issues'!F46","v":"00:00:00"}]
[]
[null,{"$f":"B494","v":"Name of Person Responsible"}]
[null,{"$f":"'Risks & Issues'!G46","v":0}]
[]
[{"$f":"'Risks & Issues'!B47","v":"B5"},{"$f":"B497","v":"Nature of Concern"}]
[null,{"$f":"'Risks & Issues'!C47","v":0}]
[]
[null,{"$f":"B500","v":"Action"}]
[null,{"$f":"'Risks & Issues'!D47","v":0}]
[]
[null,{"$f":"B503","v":"Desired Outcome"}]
[null,{"$f":"'Risks & Issues'!E47","v":0}]
[]
[null,{"$f":"B506","v":"Date for Completion (dd/mm/yyyy)"}]
[null,{"$f":"'Risks & Issues'!F47","v":"00:00:00"}]
[]
[null,{"$f":"B509","v":"Name of Person Responsible"}]
[null,{"$f":"'Risks & Issues'!G47","v":0}]
[]
[{"$f":"'Risks & Issues'!B48","v":"B6"},{"$f":"B512","v":"Nature of Concern"}]
[null,{"$f":"'Risks & Issues'!C48","v":0}]
[]
[null,{"$f":"B515","v":"Action"}]
[null,{"$f":"'Risks & Issues'!D48","v":0}]
[]
[null,{"$f":"B518","v":"Desired Outcome"}]
[null,{"$f":"'Risks & Issues'!E48","v":0}]
[]
[null,{"$f":"B521","v":"Date for Completion (dd/mm/yyyy)"}]
[null,{"$f":"'Risks & Issues'!F48","v":"00:00:00"}]
[]
[null,{"$f":"B524","v":"Name of Person Responsible"}]
[null,{"$f":"'Risks & Issues'!G48","v":0}]
[]
["Current Care Package"]
[]
[{"$f":"'Current Care Package'!C7","v":"Is the Person Receiving the Right Care and Treatment in the Community?"},{"$f":"'Current Care Package'!E7","v":0}]
[]
[{"$f":"'Current Care Package'!C8","v":"Provide a brief description of the current care package"}]
[{"$f":"'Current Care Package'!D8","v":"    Provide details:"},{"$f":"'Current Care Package'!E8","v":0}]
[]
[{"$f":"'Current Care Package'!C9","v":"And are there regular reviews in place that are attended by everyone involved in the person's care?"}]
[{"$f":"'Current Care Package'!D9","v":"    Provide details:"},{"$f":"'Current Care Package'!E9","v":0}]
[]
[{"$f":"'Current Care Package'!C10","v":"Is the person receiving the full care and support that has been commissioned for them?"}]
[{"$f":"'Current Care Package'!D10","v":"Please select from list"},{"$f":"'Current Care Package'!E10","v":0}]
[]
[{"$f":"'Current Care Package'!C11","v":"Is the person receiving the full range of appropriate interventions and support relevant to their diagnosis and treatment plan?"}]
[{"$f":"'Current Care Package'!D11","v":"Please select from list"},{"$f":"'Current Care Package'!E11","v":0}]
[]
[{"$f":"'Current Care Package'!C12","v":"What are the identified difficulties with the current care package?\ne.g. delivery difficulties? change in clinical need?"}]
[{"$f":"'Current Care Package'!D12","v":"    Provide details:"},{"$f":"'Current Care Package'!E12","v":0}]
[]
[{"$f":"'Current Care Package'!C13","v":"Are there other services that could provide additional or alternate expertise and support?"}]
[{"$f":"'Current Care Package'!D13","v":"Please select from list"},{"$f":"'Current Care Package'!E13","v":0}]
[]
[{"$f":"'Current Care Package'!C14","v":"Has the person had a communication assessment?  "}]
[{"$f":"'Current Care Package'!D14","v":"Please select from list"},{"$f":"'Current Care Package'!E14","v":0}]
[]
[{"$f":"'Current Care Package'!C15","v":"Are any identified communication needs being met as part of the Care Package?  "}]
[{"$f":"'Current Care Package'!D15","v":"Please select from list"},{"$f":"'Current Care Package'!E15","v":0}]
[]
[{"$f":"'Current Care Package'!C16","v":"Is an assessment required?"}]
[{"$f":"'Current Care Package'!D16","v":"Please select from list"},{"$f":"'Current Care Package'!E16","v":0}]
[]
[{"$f":"'Current Care Package'!C17","v":"Has the person had a sensory assessment?"}]
[{"$f":"'Current Care Package'!D17","v":"Please select from list"},{"$f":"'Current Care Package'!E17","v":0}]
[]
[{"$f":"'Current Care Package'!C18","v":"Are their identified sensory needs being me as part of the Care Package?  "}]
[{"$f":"'Current Care Package'!D18","v":"Please select from list"},{"$f":"'Current Care Package'!E18","v":0}]
[]
[{"$f":"'Current Care Package'!C19","v":"Is an assessment required?"}]
[{"$f":"'Current Care Package'!D19","v":"Please select from list"},{"$f":"'Current Care Package'!E19","v":0}]
[]
[{"$f":"'Current Care Package'!C20","v":"Is there a clear and active Positive Behavioural Support plan?"}]
[{"$f":"'Current Care Package'!D20","v":"Please select from list"},{"$f":"'Current Care Package'!E20","v":0}]
[]
[{"$f":"'Current Care Package'!C21","v":"Is Hospital Admission Absolutely Necessary?"},{"$f":"'Current Care Package'!E21","v":0}]
[]
[{"$f":"'Current Care Package'!C22","v":"Why is hospital admission being considered?\nIs there a clinical reason? Or is it a breakdown in care or support?"}]
[{"$f":"'Current Care Package'!D22","v":"    Provide details:"},{"$f":"'Current Care Package'!E22","v":0}]
[]
[{"$f":"'Current Care Package'!C23","v":"If the person were to be admitted to hospital is there a clear assessment, care and treatment plan including expected outcomes and timescales?"}]
[{"$f":"'Current Care Package'!D23","v":"    Provide details:"},{"$f":"'Current Care Package'!E23","v":0}]
[]
[{"$f":"'Current Care Package'!C24","v":"Does the hospital have the skills and resources needed to meet the goals and targets outlined in the plan?"}]
[{"$f":"'Current Care Package'!D24","v":"Please select from list"},{"$f":"'Current Care Package'!E24","v":0}]
[]
[{"$f":"'Current Care Package'!C25","v":"Why is it not possible for the assessment, care and treatment planned to be safely carried out in the community?"}]
[{"$f":"'Current Care Package'!D25","v":"    Provide details:"},{"$f":"'Current Care Package'!E25","v":0}]
[]
[{"$f":"'Current Care Package'!C26","v":"Is there a risk that hospital admission may make the person's problems worse?"}]
[{"$f":"'Current Care Package'!D26","v":"Please select from list"},{"$f":"'Current Care Package'!E26","v":0}]
[]
[{"$f":"'Current Care Package'!C27","v":"Is there an intention to seek admission under the Mental Health Act?  If so, why?"}]
[{"$f":"'Current Care Package'!D27","v":"Please select from list"},{"$f":"'Current Care Package'!E27","v":0}]
[]
[{"$f":"'Current Care Package'!B29","v":"Level of Confidence in care provision following review of the existing Care Package"},{"$f":"'Current Care Package'!D29","v":"Please select from list"}]
[]
[{"$f":"'Current Care Package'!B31","v":"Ref"}]
[]
[{"$f":"'Current Care Package'!B32","v":"C1"},{"$f":"'Current Care Package'!C31","v":"Nature of Concern"}]
[null,{"$f":"'Current Care Package'!C32","v":0}]
[]
[null,{"$f":"'Current Care Package'!D31","v":"Action"}]
[null,{"$f":"'Current Care Package'!D32","v":0}]
[]
[null,{"$f":"'Current Care Package'!E31","v":"Desired Outcome"}]
[null,{"$f":"'Current Care Package'!E32","v":0}]
[]
[null,{"$f":"'Current Care Package'!F31","v":"Date for Completion (dd/mm/yyyy)"}]
[null,{"$f":"'Current Care Package'!F32","v":"00:00:00"}]
[]
[null,{"$f":"'Current Care Package'!G31","v":"Name of Person Responsible"}]
[null,{"$f":"'Current Care Package'!G32","v":0}]
[]
[{"$f":"'Current Care Package'!B33","v":"C2"},{"$f":"B609","v":"Nature of Concern"}]
[null,{"$f":"'Current Care Package'!C33","v":0}]
[]
[null,{"$f":"B612","v":"Action"}]
[null,{"$f":"'Current Care Package'!D33","v":0}]
[]
[null,{"$f":"B615","v":"Desired Outcome"}]
[null,{"$f":"'Current Care Package'!E33","v":0}]
[]
[null,{"$f":"B618","v":"Date for Completion (dd/mm/yyyy)"}]
[null,{"$f":"'Current Care Package'!F33","v":"00:00:00"}]
[]
[null,{"$f":"B621","v":"Name of Person Responsible"}]
[null,{"$f":"'Current Care Package'!G33","v":0}]
[]
[{"$f":"'Current Care Package'!B34","v":"C3"},{"$f":"B624","v":"Nature of Concern"}]
[null,{"$f":"'Current Care Package'!C34","v":0}]
[]
[null,{"$f":"B627","v":"Action"}]
[null,{"$f":"'Current Care Package'!D34","v":0}]
[]
[null,{"$f":"B630","v":"Desired Outcome"}]
[null,{"$f":"'Current Care Package'!E34","v":0}]
[]
[null,{"$f":"B633","v":"Date for Completion (dd/mm/yyyy)"}]
[null,{"$f":"'Current Care Package'!F34","v":"00:00:00"}]
[]
[null,{"$f":"B636","v":"Name of Person Responsible"}]
[null,{"$f":"'Current Care Package'!G34","v":0}]
[]
[{"$f":"'Current Care Package'!B35","v":"C4"},{"$f":"B639","v":"Nature of Concern"}]
[null,{"$f":"'Current Care Package'!C35","v":0}]
[]
[null,{"$f":"B642","v":"Action"}]
[null,{"$f":"'Current Care Package'!D35","v":0}]
[]
[null,{"$f":"B645","v":"Desired Outcome"}]
[null,{"$f":"'Current Care Package'!E35","v":0}]
[]
[null,{"$f":"B648","v":"Date for Completion (dd/mm/yyyy)"}]
[null,{"$f":"'Current Care Package'!F35","v":"00:00:00"}]
[]
[null,{"$f":"B651","v":"Name of Person Responsible"}]
[null,{"$f":"'Current Care Package'!G35","v":0}]
[]
[{"$f":"'Current Care Package'!B36","v":"C5"},{"$f":"B654","v":"Nature of Concern"}]
[null,{"$f":"'Current Care Package'!C36","v":0}]
[]
[null,{"$f":"B657","v":"Action"}]
[null,{"$f":"'Current Care Package'!D36","v":0}]
[]
[null,{"$f":"B660","v":"Desired Outcome"}]
[null,{"$f":"'Current Care Package'!E36","v":0}]
[]
[null,{"$f":"B663","v":"Date for Completion (dd/mm/yyyy)"}]
[null,{"$f":"'Current Care Package'!F36","v":"00:00:00"}]
[]
[null,{"$f":"B666","v":"Name of Person Responsible"}]
[null,{"$f":"'Current Care Package'!G36","v":0}]
[]
[{"$f":"'Current Care Package'!B37","v":"C6"},{"$f":"B669","v":"Nature of Concern"}]
[null,{"$f":"'Current Care Package'!C37","v":0}]
[]
[null,{"$f":"B672","v":"Action"}]
[null,{"$f":"'Current Care Package'!D37","v":0}]
[]
[null,{"$f":"B675","v":"Desired Outcome"}]
[null,{"$f":"'Current Care Package'!E37","v":0}]
[]
[null,{"$f":"B678","v":"Date for Completion (dd/mm/yyyy)"}]
[null,{"$f":"'Current Care Package'!F37","v":"00:00:00"}]
[]
[null,{"$f":"B681","v":"Name of Person Responsible"}]
[{"$f":"'Current Care Package'!B38","v":0},{"$f":"'Current Care Package'!G37","v":0}]

{"sheet":"Source data","index":7,"n_rows":573,"n_cols":9,"rows_kept":573,"cut":false,"hidden":true,"merged":[]}
["ICB"]
["Please select from list"]
["NHS Bath and North East Somerset, Swindon and Wiltshire ICB"]
["NHS Bedfordshire, Luton and Milton Keynes ICB"]
["NHS Birmingham and Solihull ICB"]
["NHS Black Country ICB"]
["NHS Bristol, North Somerset and South Gloucestershire ICB"]
["NHS Buckinghamshire, Oxfordshire and Berkshire West ICB"]
["NHS Cambridgeshire and Peterborough ICB"]
["NHS Cheshire and Merseyside ICB"]
["NHS Cornwall and the Isles of Scilly ICB"]
["NHS Coventry and Warwickshire ICB"]
["NHS Derby and Derbyshire ICB"]
["NHS Devon ICB"]
["NHS Dorset ICB"]
["NHS Frimley ICB"]
["NHS Gloucestershire ICB"]
["NHS Greater Manchester ICB"]
["NHS Hampshire and Isle of Wight ICB"]
["NHS Herefordshire and Worcestershire ICB"]
["NHS Hertfordshire and West Essex ICB"]
["NHS Humber and North Yorkshire ICB"]
["NHS Kent and Medway ICB"]
["NHS Lancashire and South Cumbria ICB"]
["NHS Leicester, Leicestershire and Rutland ICB"]
["NHS Lincolnshire ICB"]
["NHS Mid and South Essex ICB"]
["NHS Norfolk and Waveney ICB"]
["NHS Central London ICB"]
["NHS North Central London ICB"]
["NHS North East and North Cumbria ICB"]
["NHS North East London ICB"]
["NHS North West London ICB"]
["NHS Northamptonshire ICB"]
["NHS Nottingham and Nottinghamshire ICB"]
["NHS Shropshire, Telford and Wrekin ICB"]
["NHS Somerset ICB"]
["NHS South East London ICB"]
["NHS South West London ICB"]
["NHS South Yorkshire ICB"]
["NHS Staffordshire and Stoke-on-Trent ICB"]
["NHS Suffolk and North East Essex ICB"]
["NHS Surrey Heartlands ICB"]
["NHS Sussex ICB"]
["NHS West Yorkshire ICB"]
[]
["Reason for Review","Purpose of Review"]
["Please select from list"," "]
["Final pre-discharge CTR"," -  the safety, care and future planning for the person\n -  the person's advocacy needs following discharge (ideally to be arranged prior to discharge)"]
["Independently chaired CTR for people in long-term segregation"," - the safety, care and future planning for the person\n - do they need to continue to stay in hospital to receive care and treatment\n - barriers to progression and discharge and how to overcome these\n - are the correct or most effective treatments are being provided.\nNOTE: The Panel should be  enhanced by an independent chair appointed by DHC and a CQC Mental Health Act reviewer"]
["New diagnosis of Autism and/or a Learning Disability whilst in hospital"," - the safety, care and future planning for the person\n - the reason for the hospital stay\n - barriers to progression and discharge and how to overcome these\n - are the correct or most effective treatments are being provided\n - ensure patient has been added to the Assuring Transformation database"]
["Proposal to remove an incorrect diagnosis"," - to ensure that the person, their family and advocate have been included in the decision-making process regarding the removal of the diagnosis\n - to ensure that the impact of this change on their care, education and treatment has been fully considered\nNB. Removal of diagnosis will mean the person no longer meets the requirements to be included in the Assuring Transformation Database\n"]
["Review requested by person, their family, carer or advocate"," - the safety, care and future planning for the person\n - the reason for the hospital stay\n - barriers to progression and discharge and how to overcome these\n - are the correct or most effective treatments are being provided.\n"]
["Review requested by responsible commisioner"," - the safety, care and future planning for the person\n - the reason for the hospital stay\n - barriers to progression and discharge and how to overcome these\n - are the correct or most effective treatments are being provided."]
["Review requested by inpatient team supporting the person"," - the safety, care and future planning for the person\n - the reason for the hospital stay\n - barriers to progression and discharge and how to overcome these\n - are the correct or most effective treatments are being provided."]
["Security level increased (same inpatient setting)"," - the safety, care and future planning for the person\n - the reason for the hospital stay\n - barriers to progression and discharge and how to overcome these\n - are the correct or most effective treatments are being provided\n - are the clinical aims of the person being met\n - is there a clear rationale for why care and treatment cannot be safely delivered in the community"]
["Security level reduced (same inpatient setting)"," - the safety, care and future planning for the person\n - the reason for the hospital stay\n - barriers to progression and discharge and how to overcome these\n - are the correct or most effective treatments are being provided\n - are the clinical aims of the person being met\n - is there a clear rationale for why care and treatment cannot be safely delivered in the community"]
["Six month Care and Treatment Review (non-secure services)"," - the safety, care and future planning for the person\n - the reason for the hospital stay\n - barriers to progression and discharge and how to overcome these\n - are the correct or most effective treatments are being provided"]
["Six weeks since patient was admitted following community CTR"," - the safety, care and future planning for the person\n - the reason for the hospital stay\n - barriers to progression and discharge and how to overcome these\n - are the correct or most effective treatments are being provided  "]
["Transferred in from another inpatient setting"," - the safety, care and future planning for the person\n - the reason for the hospital stay\n - barriers to progression and discharge and how to overcome these\n - are the correct or most effective treatments are being provided\n - are the clinical aims of the person being met\n - is there a clear rationale for why care and treatment cannot be safely delivered in the community"]
["Twelve month Care and Treatment Review (secure services)"," - the safety, care and future planning for the person\n - the reason for the hospital stay\n - barriers to progression and discharge and how to overcome these\n - are the correct or most effective treatments are being provided"]
["Twenty-eight day post-admission CTR where no community CTR"," - review the circumstances and route to admission to establish if hospital is the most appropriate setting for a person's care or whether care could be provided in the community or another setting\n - establish the purpose of admission, expected outcomes, timescales and expected length of stay\n - ensure that planning is underway for discharge with preliminary timescales and any commissioning that may be required to support discharge (e.g. housing/workforce) begins as early as possible."]
[]
["Sites","Provider","Site Commissioner"]
["Please select from list","  - ","  -"]
["ALLINGTON CENTRE","KENT AND MEDWAY NHS AND SOCIAL CARE PARTNERSHIP TRUST","NHS KENT AND MEDWAY CCG"]
["ABRAHAM COWLEY UNIT","SURREY AND BORDERS PARTNERSHIP NHS FOUNDATION TRUST","SURREY AND BORDERS PARTNERSHIP NHS FOUNDATION TRUST"]
["AIREDALE GENERAL HOSPITAL","AIREDALE NHS FOUNDATION TRUST","AIREDALE NHS FOUNDATION TRUST"]
["ALDERLEY UNIT","CHESHIRE AND WIRRAL PARTNERSHIP NHS FOUNDATION TRUST","CHESHIRE AND WIRRAL PARTNERSHIP NHS FOUNDATION TRUST"]
["ALDERS CLINIC","CYGNET HEALTH CARE LIMITED","CYGNET HEALTH CARE LIMITED"]
["ALL SAINTS HOSPITAL","ELYSIUM HEALTHCARE","ELYSIUM HEALTHCARE"]
["AMBER LODGE (SECURE)","ROTHERHAM DONCASTER AND SOUTH HUMBER NHS FOUNDATION TRUST","ROTHERHAM DONCASTER AND SOUTH HUMBER NHS FOUNDATION TRUST"]
["ANCORA HOUSE (CAMHS)","CHESHIRE AND WIRRAL PARTNERSHIP NHS FOUNDATION TRUST","CHESHIRE AND WIRRAL PARTNERSHIP NHS FOUNDATION TRUST"]
["ANSON ROAD","GREATER MANCHESTER MENTAL HEALTH NHS FOUNDATION TRUST","GREATER MANCHESTER MENTAL HEALTH NHS FOUNDATION TRUST"]
["ANTELOPE HOUSE","SOUTHERN HEALTH NHS FOUNDATION TRUST","SOUTHERN HEALTH NHS FOUNDATION TRUST"]
["ARBURY COURT","ELYSIUM HEALTHCARE","ELYSIUM HEALTHCARE"]
["ARDENLEIGH","BIRMINGHAM AND SOLIHULL MENTAL HEALTH NHS FOUNDATION TRUST","BIRMINGHAM AND SOLIHULL MENTAL HEALTH NHS FOUNDATION TRUST"]
["ARDENLEIGH CAMHS","BIRMINGHAM AND SOLIHULL MENTAL HEALTH NHS FOUNDATION TRUST","BIRMINGHAM AND SOLIHULL MENTAL HEALTH NHS FOUNDATION TRUST"]
["ARNOLD LODGE","NOTTINGHAMSHIRE HEALTHCARE NHS FOUNDATION TRUST","NHS LEICESTER CITY CCG"]
["ASH GREEN","DERBYSHIRE COMMUNITY HEALTH SERVICES NHS FOUNDATION TRUST","NHS DERBY AND DERBYSHIRE CCG"]
["ASH WARD, WILLOW WARD AND WESSEX HOUSE","SOMERSET PARTNERSHIP NHS FOUNDATION TRUST","NHS SOMERSET CCG"]
["ASHWORTH HOSPITAL","MERSEY CARE NHS TRUST","NHS SOUTH SEFTON CCG"]
["ATHERLEIGH PARK","NORTH WEST BOROUGHS HEALTHCARE NHS FOUNDATION TRUST","NHS WIGAN BOROUGH CCG"]
["AYR CLINIC","PRIORY GROUP LIMITED","SCOTLAND"]
["BALLINGTON HOUSE","ELYSIUM HEALTHCARE","NHS NORTH STAFFORDSHIRE CCG"]
["BANKFIELDS COURT","TEES, ESK AND WEAR VALLEYS NHS FOUNDATION TRUST","NHS TEES VALLEY CCG"]
["BARBERRY","BIRMINGHAM AND SOLIHULL MENTAL HEALTH NHS FOUNDATION TRUST","NHS BIRMINGHAM AND SOLIHULL CCG"]
["BASSETLAW HOSPITAL","DONCASTER AND BASSETLAW TEACHING HOSPITALS","NHS BASSETLAW CCG"]
["BERKELEY HOUSE (formerly HOLLYBROOK)","2GETHER NHS FOUNDATION TRUST","NHS GLOUCESTERSHIRE CCG"]
["BERRYWOOD HOSPITAL","NORTHAMPTONSHIRE HEALTHCARE NHS FOUNDATION TRUST","NHS NORTHAMPTONSHIRE CCG "]
["BETHLEM ROYAL HOSPITAL","SOUTH LONDON AND MAUDSLEY NHS FOUNDATION TRUST","NHS SOUTH EAST LONDON CCG"]
["BEVERLEY HOUSE","PRIORY GROUP LIMITED","NHS BIRMINGHAM AND SOLIHULL CCG"]
["BIRCH HILL HOSPITAL","PENNINE CARE NHS FOUNDATION TRUST","NHS HEYWOOD, MIDDLETON AND ROCHDALE CCG"]
["BLACKBERRY HILL HOSPITAL","AVON AND WILTSHIRE MENTAL HEALTH PARTNERSHIP NHS TRUST","NHS BRISTOL, NORTH SOMERSET AND SOUTH GLOUCESTERSHIRE CCG"]
["BLUEBIRD HOUSE CAMHS","SOUTHERN HEALTH NHS FOUNDATION TRUST","NHS HAMPSHIRE, SOUTHAMPTON AND ISLE OF WIGHT CCG"]
["BODMIN HOSPITAL","CORNWALL PARTNERSHIP NHS FOUNDATION TRUST","NHS KERNOW CCG"]
["BOSTALL HOUSE","CYGNET HEALTH CARE LIMITED","NHS SOUTH EAST LONDON CCG"]
["BOWMERE HOSPITAL","CHESHIRE AND WIRRAL PARTNERSHIP NHS FOUNDATION TRUST","NHS CHESHIRE CCG"]
["BRACTON CENTRE","OXLEAS NHS FOUNDATION TRUST","NHS KENT AND MEDWAY CCG"]
["BRADLEY COMPLEX CARE  (formerly BRADLEY WOODLANDS)","ELYSIUM HEALTHCARE","NHS NORTH EAST LINCOLNSHIRE CCG"]
["BRAMLEY STREET REHABILITATION","GREATER MANCHESTER MENTAL HEALTH NHS FOUNDATION TRUST","NHS SALFORD CCG"]
["BREIGHTMET CENTRE FOR AUTISM","ASC HEALTHCARE LTD","NHS BOLTON CCG"]
["BRIGHTON & HOVE CLINIC","ELYSIUM HEALTHCARE","NHS BRIGHTON AND HOVE CCG"]
["BROAD OAK UNIT, BROADGREEN HOSPITAL","MERSEY CARE NHS TRUST","NHS LIVERPOOL CCG"]
["BROADMOOR HOSPITAL (high secure)","WEST LONDON MENTAL HEALTH NHS TRUST","NHS FRIMLEY CCG"]
["BROCKFIELD HOUSE","SOUTH ESSEX PARTNERSHIP UNIVERSITY NHS FOUNDATION TRUST","NHS MID ESSEX CCG"]
["BROMLEY ROAD HOSPITAL","CHOICE LIFESTYLES LTD","NHS SOUTH EAST LONDON CCG"]
["BROOKFIELD ","KENT AND MEDWAY NHS AND SOCIAL CARE PARTNERSHIP TRUST","NHS KENT AND MEDWAY CCG"]
["BROOKLANDS HOSPITAL","COVENTRY AND WARWICKSHIRE PARTNERSHIP NHS TRUST","NHS BIRMINGHAM AND SOLIHULL CCG"]
["BROOMHILL","ST MATTHEW'S HEALTHCARE","NHS NORTHAMPTONSHIRE CCG "]
["BURSTON HOUSE","PRIORY GROUP LIMITED","NHS NORFOLK & WAVENEY CCG"]
["BURTON PARK","PRIORY GROUP LIMITED","NHS EAST LEICESTERSHIRE AND RUTLAND CCG"]
["BUSHEY FIELDS HOSPITAL","DUDLEY AND WALSALL MENTAL HEALTH PARTNERSHIP NHS TRUST","NHS BLACK COUNTRY AND WEST BIRMINGHAM CCG"]
["CALDERDALE ROYAL HOSPITAL - THE DALES","SOUTH WEST YORKSHIRE PARTNERSHIP NHS FOUNDATION TRUST","NHS CALDERDALE CCG"]
["CALLINGTON ROAD HOSPITAL","AVON AND WILTSHIRE MENTAL HEALTH PARTNERSHIP NHS TRUST","NHS BRISTOL, NORTH SOMERSET AND SOUTH GLOUCESTERSHIRE CCG"]
["CALUDON CENTRE","COVENTRY AND WARWICKSHIRE PARTNERSHIP NHS TRUST","NHS COVENTRY AND WARWICKSHIRE CCG"]
["CAMPUS FOR AGEING AND VITALITY","THE NEWCASTLE UPON TYNE HOSPITALS NHS FOUNDATION TRUST","NHS NEWCASTLE GATESHEAD CCG"]
["CARLTON CLINIC","CUMBRIA PARTNERSHIP NHS FOUNDATION TRUST","NHS NORTH CUMBRIA CCG"]
["CAVELL CENTRE","CAMBRIDGESHIRE AND PETERBOROUGH NHS FOUNDATION TRUST","NHS CAMBRIDGESHIRE AND PETERBOROUGH CCG"]
["CAWSTON PARK","JEESAL AKMAN CARE CORPORATION LTD","NHS NORFOLK & WAVENEY CCG"]
["CEDAR HOUSE HOSPITAL","THE HUNTERCOMBE GROUP","NHS KENT AND MEDWAY CCG"]
["CEDAR VALE HOSPITAL","CYGNET HEALTH CARE LIMITED","NHS NOTTINGHAM AND NOTTINGHAMSHIRE CCG"]
["CEFN CARNAU","ELYSIUM HEALTHCARE","WALES"]
["CHADWICK LODGE","ELYSIUM HEALTHCARE","NHS BEDFORDSHIRE, LUTON AND MILTON KEYNES CCG"]
["CHASE FARM HOSPITAL","BARNET, ENFIELD AND HARINGEY MENTAL HEALTH NHS TRUST","NHS NORTH CENTRAL LONDON CCG"]
["CHEADLE ROYAL","PRIORY GROUP LIMITED","NHS STOCKPORT CCG"]
["CHELMSFORD - THE LINDEN CENTRE","NORTH ESSEX PARTNERSHIP UNIVERSITY NHS FOUNDATION TRUST","NHS MID ESSEX CCG"]
["CHESTERFIELD ROYAL HOSPITAL - HARTINGTON UNIT","DERBYSHIRE COMMUNITY HEALTH SERVICES NHS FOUNDATION TRUST","NHS DERBY AND DERBYSHIRE CCG"]
["CHESWOLD PARK HOSPITAL (DONCASTER)","RIVERSIDE HEALTHCARE LTD","NHS DONCASTER CCG"]
["CHICHESTER CENTRE","SUSSEX PARTNERSHIP NHS FOUNDATION TRUST","NHS WEST SUSSEX CCG"]
["CHORLEY AND SOUTH RIBBLE DISTRICT GENERAL HOSPITAL","LANCASHIRE CARE NHS FOUNDATION TRUST","NHS CHORLEY AND SOUTH RIBBLE CCG"]
["CHURCH VILLAGE","PRIORY GROUP LIMITED","WALES"]
["CLOISTERS","PRIORY GROUP LIMITED","NHS BERKSHIRE WEST CCG"]
["COLLINGHAM person AND FAMILY CENTRE (CAMHS)","CENTRAL AND NORTH WEST LONDON NHS FOUNDATION TRUST","NHS NORTH WEST LONDON CCG"]
["CORNERSTONE HOUSE","VISION MENTAL HEALTHCARE","NHS HERTS VALLEYS CCG"]
["CRAWLEY ROAD","SUSSEX PARTNERSHIP NHS FOUNDATION TRUST","NHS WEST SUSSEX CCG"]
["CRYSTAL HOUSE","CENTRAL AND NORTH WEST LONDON NHS FOUNDATION TRUST","NHS NORTH WEST LONDON CCG"]
["CYGNET ASPEN HOUSE","CYGNET HEALTH CARE LIMITED","NHS DONCASTER CCG"]
["CYGNET CEDARS","CYGNET HEALTH CARE LIMITED","NHS DEVON CCG"]
["CYGNET CHURCHILL","CYGNET HEALTH CARE LIMITED","NHS SOUTH EAST LONDON CCG"]
["CYGNET ELMS","CYGNET HEALTH CARE LIMITED","NHS BIRMINGHAM AND SOLIHULL CCG"]
["CYGNET HOSPITAL BECKTON","CYGNET HEALTH CARE LIMITED","NHS NORTH EAST LONDON CCG"]
["CYGNET HOSPITAL BIERLEY","CYGNET HEALTH CARE LIMITED","NHS BRADFORD DISTRICT AND CRAVEN CCG"]
["CYGNET HOSPITAL BURY","CYGNET HEALTH CARE LIMITED","NHS BURY CCG"]
["CYGNET HOSPITAL CLIFTON","CYGNET HEALTH CARE LIMITED","NHS NOTTINGHAM AND NOTTINGHAMSHIRE CCG"]
["CYGNET HOSPITAL COLCHESTER","CYGNET HEALTH CARE LIMITED","NHS NORTH EAST ESSEX CCG"]
["CYGNET HOSPITAL COVENTRY","CYGNET HEALTH CARE LIMITED","NHS COVENTRY AND WARWICKSHIRE CCG"]
["CYGNET HOSPITAL DERBY","CYGNET HEALTH CARE LIMITED","NHS DERBY AND DERBYSHIRE CCG"]
["CYGNET HOSPITAL EALING","CYGNET HEALTH CARE LIMITED","NHS NORTH WEST LONDON CCG"]
["CYGNET HOSPITAL HARROW","CYGNET HEALTH CARE LIMITED","NHS NORTH WEST LONDON CCG"]
["CYGNET HOSPITAL HEXHAM","CYGNET HEALTH CARE LIMITED","NHS NORTHUMBERLAND CCG"]
["CYGNET HOSPITAL KEWSTOKE","CYGNET HEALTH CARE LIMITED","NHS BRISTOL, NORTH SOMERSET AND SOUTH GLOUCESTERSHIRE CCG"]
["CYGNET HOSPITAL MAIDSTONE","CYGNET HEALTH CARE LIMITED","NHS KENT AND MEDWAY CCG"]
["CYGNET HOSPITAL SHEFFIELD","CYGNET HEALTH CARE LIMITED","NHS SHEFFIELD CCG"]
["CYGNET HOSPITAL STEVENAGE","CYGNET HEALTH CARE LIMITED","NHS EAST AND NORTH HERTFORDSHIRE CCG"]
["CYGNET HOSPITAL TAUNTON","CYGNET HEALTH CARE LIMITED","NHS SOMERSET CCG"]
["CYGNET HOSPITAL WOKING","CYGNET HEALTH CARE LIMITED","NHS SURREY HEARTLANDS CCG"]
["CYGNET HOSPITAL WYKE","CYGNET HEALTH CARE LIMITED","NHS BRADFORD DISTRICT AND CRAVEN CCG"]
["CYGNET LODGE BRIGHOUSE","CYGNET HEALTH CARE LIMITED","NHS CALDERDALE CCG"]
["CYGNET LODGE KENTON (WESTLANDS)","CYGNET HEALTH CARE LIMITED","NHS NORTH WEST LONDON CCG"]
["CYGNET LODGE LEWISHAM","CYGNET HEALTH CARE LIMITED","NHS SOUTH EAST LONDON CCG"]
["CYGNET MANOR","CYGNET HEALTH CARE LIMITED","NHS DERBY AND DERBYSHIRE CCG"]
["CYGNET OAKS","CYGNET HEALTH CARE LIMITED","NHS BARNSLEY CCG"]
["CYGNET RAGLAN HOUSE","CYGNET HEALTH CARE LIMITED","NHS BLACK COUNTRY AND WEST BIRMINGHAM CCG"]
["CYGNET SHERWOOD LODGE","CYGNET HEALTH CARE LIMITED","NHS NOTTINGHAM AND NOTTINGHAMSHIRE CCG"]
["CYGNET ST AUGUSTINE'S","CYGNET HEALTH CARE LIMITED","NHS STOKE ON TRENT CCG"]
["CYGNET STORTHFIELD HOUSE","CYGNET HEALTH CARE LIMITED","NHS DERBY AND DERBYSHIRE CCG"]
["CYGNET VIEWS","CYGNET HEALTH CARE LIMITED","NHS DERBY AND DERBYSHIRE CCG"]
["CYGNET WAST HILLS","CYGNET HEALTH CARE LIMITED","NHS BIRMINGHAM AND SOLIHULL CCG"]
["DEACON UNIT","SURREY AND BORDERS PARTNERSHIP NHS FOUNDATION TRUST","NHS SURREY HEARTLANDS CCG"]
["DEWI JONES UNIT","ALDER HEY personREN'S NHS FOUNDATION TRUST","NHS SOUTH SEFTON CCG"]
["DISCOVERY HOUSE - THE FENS, THE VALES & THE WOLDS","LINCOLNSHIRE PARTNERSHIP NHS FOUNDATION TRUST","NHS LINCOLNSHIRE CCG"]
["EASTWAY ASSESSMENT & TREATMENT UNIT","CHESHIRE AND WIRRAL PARTNERSHIP NHS FOUNDATION TRUST","NHS CHESHIRE CCG"]
["EBBW VALE HOSPITAL","REGIS HEALTHCARE","WALES"]
["EDENFIELD CENTRE  (formerly LOWRY UNIT / PRESTWICH HOSPITAL)","GREATER MANCHESTER MENTAL HEALTH NHS FOUNDATION TRUST","NHS BURY CCG"]
["EDGWARE COMMUNITY HOSPITAL","BARNET, ENFIELD AND HARINGEY MENTAL HEALTH NHS TRUST","NHS NORTH CENTRAL LONDON CCG"]
["EDGWARE COMMUNITY HOSPITAL - BEACON CENTRE ADOLESCENT UNIT","BARNET, ENFIELD AND HARINGEY MENTAL HEALTH NHS TRUST","NHS NORTH CENTRAL LONDON CCG"]
["ELLERN MEDE BARNET","ELLERN MEDE CENTRE FOR EATING DISORDERS","NHS NORTH CENTRAL LONDON CCG"]
["ELLERN MEDE MOORGATE","ELLERN MEDE CENTRE FOR EATING DISORDERS","NHS ROTHERHAM CCG"]
["ELLERN MEDE RIDGEWAY","ELLERN MEDE CENTRE FOR EATING DISORDERS","NHS NORTH CENTRAL LONDON CCG"]
["ELMLEIGH","SOUTHERN HEALTH NHS FOUNDATION TRUST","NHS HAMPSHIRE, SOUTHAMPTON AND ISLE OF WIGHT CCG"]
["FAIRFIELD HOSPITAL - HOPE AND HORIZON UNITS (CAMHS)","PENNINE CARE NHS FOUNDATION TRUST","NHS BURY CCG"]
["FAIRFIELD HOSPITAL - IRWELL UNIT","PENNINE CARE NHS FOUNDATION TRUST","NHS BURY CCG"]
["FARMFIELD","ELYSIUM HEALTHCARE","NHS SURREY HEARTLANDS CCG"]
["FARNHAM ROAD HOSPITAL (MENTAL HEALTH UNIT)","SURREY AND BORDERS PARTNERSHIP NHS FOUNDATION TRUST","NHS SURREY HEARTLANDS CCG"]
["FERNDENE - CAMHS","NORTHUMBERLAND, TYNE AND WEAR NHS FOUNDATION TRUST","NHS NORTHUMBERLAND CCG"]
["FIELDHEAD HOSPITAL","SOUTH WEST YORKSHIRE PARTNERSHIP NHS FOUNDATION TRUST","NHS WAKEFIELD CCG"]
["FORSTON CLINIC","DORSET HEALTHCARE NHS FOUNDATION TRUST","NHS DORSET CCG"]
["FOSS PARK HOSPITAL","TEES, ESK AND WEAR VALLEYS NHS FOUNDATION TRUST","NHS VALE OF YORK CCG"]
["FOUNTAIN WAY","AVON AND WILTSHIRE MENTAL HEALTH PARTNERSHIP NHS TRUST","NHS BATH AND NORTH EAST SOMERSET, SWINDON AND WILTSHIRE CCG"]
["FRANCIS WILLIS UNIT","LINCOLNSHIRE PARTNERSHIP NHS FOUNDATION TRUST","NHS LINCOLNSHIRE CCG"]
["FURNESS GENERAL HOSPITAL","CUMBRIA PARTNERSHIP NHS FOUNDATION TRUST","NHS MORECAMBE BAY CCG"]
["GLENFIELD HOSPITAL - BRADGATE UNIT","LEICESTERSHIRE PARTNERSHIP NHS TRUST","NHS LEICESTER CITY CCG"]
["GLENFIELD HOSPITAL - HERSCHEL PRINS CENTRE","LEICESTERSHIRE PARTNERSHIP NHS TRUST","NHS LEICESTER CITY CCG"]
["GLENFIELD HOSPITAL - THE BENNION CENTRE","LEICESTERSHIRE PARTNERSHIP NHS TRUST","NHS LEICESTER CITY CCG"]
["GLENHURST LODGE","BRAMLEY HEALTH","NHS KENT AND MEDWAY CCG"]
["GOLDIE LEIGH HOSPITAL SITE - ATLAS HOUSE / SOMERSET VILLA","OXLEAS NHS FOUNDATION TRUST","NHS SOUTH EAST LONDON CCG"]
["GOODMAYES HOSPITAL","NORTH EAST LONDON NHS FOUNDATION TRUST","NHS NORTH EAST LONDON CCG"]
["GOODMAYES HOSPITAL - BROOKSIDE ADOLESCENT UNIT","NORTH EAST LONDON NHS FOUNDATION TRUST","NHS NORTH EAST LONDON CCG"]
["GORSE HILL HOSPITAL - AGNES UNIT","LEICESTERSHIRE PARTNERSHIP NHS TRUST","NHS LEICESTER CITY CCG"]
["GREAT ORMOND STREET HOSPITAL","CENTRAL AND NORTH WEST LONDON NHS FOUNDATION TRUST","NHS NORTH CENTRAL LONDON CCG"]
["GREEN LANE HOSPITAL","AVON AND WILTSHIRE MENTAL HEALTH PARTNERSHIP NHS TRUST","NHS BATH AND NORTH EAST SOMERSET, SWINDON AND WILTSHIRE CCG"]
["GREEN PARKS HOUSE","OXLEAS NHS FOUNDATION TRUST","NHS SOUTH EAST LONDON CCG"]
["GUILD LODGE","LANCASHIRE CARE NHS FOUNDATION TRUST","NHS GREATER PRESTON CCG"]
["HALLAM STREET HOSPITAL","BLACK COUNTRY PARTNERSHIP NHS FOUNDATION TRUST","NHS BLACK COUNTRY AND WEST BIRMINGHAM CCG"]
["HAMMERSMITH & FULHAM MENTAL HEALTH UNIT","WEST LONDON MENTAL HEALTH NHS TRUST","NHS NORTH WEST LONDON CCG"]
["HARPLANDS HOSPITAL","NORTH STAFFORDSHIRE COMBINED HEALTHCARE NHS TRUST","NHS STOKE ON TRENT CCG"]
["HARRISON HOUSE","NAVIGO","NHS NORTH EAST LINCOLNSHIRE CCG"]
["HAYES GROVE","PRIORY GROUP LIMITED","NHS SOUTH EAST LONDON CCG"]
["HAZELWOOD HOUSE","PRIORY GROUP LIMITED","NHS DERBY AND DERBYSHIRE CCG"]
["HEALTHLINC HOUSE","ELYSIUM HEALTHCARE","NHS LINCOLNSHIRE CCG"]
["HEATH CLOSE","SOUTH ESSEX PARTNERSHIP UNIVERSITY NHS FOUNDATION TRUST","NHS BASILDON AND BRENTWOOD CCG"]
["HEATH LANE HOSPITAL","BLACK COUNTRY PARTNERSHIP NHS FOUNDATION TRUST","NHS BLACK COUNTRY AND WEST BIRMINGHAM CCG"]
["HELLESDON HOSPITAL","NORFOLK AND SUFFOLK NHS FOUNDATION TRUST","NHS NORFOLK & WAVENEY CCG"]
["HELLINGLY CENTRE","SUSSEX PARTNERSHIP NHS FOUNDATION TRUST","NHS EAST SUSSEX CCG"]
["HIGHBURY HOSPITAL","NOTTINGHAMSHIRE HEALTHCARE NHS FOUNDATION TRUST","NHS NOTTINGHAM AND NOTTINGHAMSHIRE CCG"]
["HIGHFIELD ADOLESCENT UNIT","OXFORD HEALTH NHS FOUNDATION TRUST","NHS OXFORDSHIRE CCG"]
["HIGHGATE CENTRE FOR MENTAL HEALTH","CAMDEN AND ISLINGTON NHS FOUNDATION TRUST","NHS NORTH CENTRAL LONDON CCG"]
["HOLLINS PARK HOSPITAL (non-secure)","NORTH WEST BOROUGHS HEALTHCARE NHS FOUNDATION TRUST","NHS WARRINGTON CCG"]
["HOLLINS PARK HOSPITAL (secure)","NORTH WEST BOROUGHS HEALTHCARE NHS FOUNDATION TRUST","NHS WARRINGTON CCG"]
["HOLLYBANK","SOUTHERN HEALTH NHS FOUNDATION TRUST","NHS HAMPSHIRE, SOUTHAMPTON AND ISLE OF WIGHT CCG"]
["HOPEWOOD CAMHS","NOTTINGHAMSHIRE HEALTHCARE NHS FOUNDATION TRUST","NHS NOTTINGHAM AND NOTTINGHAMSHIRE CCG"]
["HOPEWOOD PARK","NORTHUMBERLAND, TYNE AND WEAR NHS FOUNDATION TRUST","NHS SUNDERLAND CCG"]
["HPFT NORTH ESSEX - LEXDEN HOSPITAL","HERTFORDSHIRE PARTNERSHIP UNIVERSITY NHS FOUNDATION TRUST","NHS NORTH EAST ESSEX CCG"]
["HUMBER CENTRE FOR FORENSIC PSYCHIATRY","HUMBER TEACHING NHS FOUNDATION TRUST","NHS EAST RIDING OF YORKSHIRE CCG"]
["HUNTERCOMBE CENTRE BIRMINGHAM","THE HUNTERCOMBE GROUP","NHS BLACK COUNTRY AND WEST BIRMINGHAM CCG"]
["HUNTERCOMBE HOSPITAL - COTSWOLD SPA","THE HUNTERCOMBE GROUP","NHS HEREFORDSHIRE AND WORCESTERSHIRE CCG"]
["HUNTERCOMBE HOSPITAL - MAIDENHEAD (CAMHS)","THE HUNTERCOMBE GROUP","NHS BUCKINGHAMSHIRE CCG"]
["HUNTERCOMBE HOSPITAL - STAFFORD (CAMHS)","THE HUNTERCOMBE GROUP","NHS STAFFORD AND SURROUNDS CCG"]
["IDA DARWIN HOSPITAL CAMHS","CAMBRIDGESHIRE AND PETERBOROUGH NHS FOUNDATION TRUST","NHS CAMBRIDGESHIRE AND PETERBOROUGH CCG"]
["INTENSIVE SUPPORT SERVICE CENTRE","SHEFFIELD HEALTH & SOCIAL CARE NHS FOUNDATION TRUST","NHS SHEFFIELD CCG"]
["JIGSAW INDEPENDENT HOSPITAL","EQUILIBRIUM HEALTHCARE","NHS MANCHESTER CCG"]
["JOHN DENMARK UNIT MENTAL HEALTH & DEAFNESS INPATIENT SERVICES","GREATER MANCHESTER MENTAL HEALTH NHS FOUNDATION TRUST","NHS BURY CCG"]
["JOHN HOWARD CENTRE - FORENSIC CENTRE FOR MH","EAST LONDON NHS FOUNDATION TRUST","NHS NORTH EAST LONDON CCG"]
["JUNCTION 17 CAMHS","GREATER MANCHESTER MENTAL HEALTH NHS FOUNDATION TRUST","NHS BURY CCG"]
["KEMPLE VIEW","PRIORY GROUP LIMITED","NHS EAST LANCASHIRE CCG"]
["KENDRAY HOSPITAL","SOUTH WEST YORKSHIRE PARTNERSHIP NHS FOUNDATION TRUST","NHS BARNSLEY CCG"]
["KENT AND MEDWAY ADOLESCENT UNIT (WOODLAND HOUSE)","NORTH EAST LONDON NHS FOUNDATION TRUST","NHS KENT AND MEDWAY CCG"]
["KENT HOUSE HOSPITAL CAMHS","PRIORY GROUP LIMITED","NHS SOUTH EAST LONDON CCG"]
["KINGFISHER COURT","HERTFORDSHIRE PARTNERSHIP UNIVERSITY NHS FOUNDATION TRUST","NHS HERTS VALLEYS CCG"]
["KINGSLEY GREEN - BOWLERS GREEN (low secure)","HERTFORDSHIRE PARTNERSHIP UNIVERSITY NHS FOUNDATION TRUST","NHS HERTS VALLEYS CCG"]
["KINGSLEY GREEN - FOREST HOUSE ADOLESCENT UNIT","HERTFORDSHIRE PARTNERSHIP UNIVERSITY NHS FOUNDATION TRUST","NHS HERTS VALLEYS CCG"]
["KINGSLEY GREEN - SRS BUNGALOWS","HERTFORDSHIRE PARTNERSHIP UNIVERSITY NHS FOUNDATION TRUST","NHS HERTS VALLEYS CCG"]
["KINGSWOOD CENTRE","CENTRAL AND NORTH WEST LONDON NHS FOUNDATION TRUST","NHS NORTH WEST LONDON CCG"]
["KNEESWORTH HOUSE HOSPITAL","PRIORY GROUP LIMITED","NHS CAMBRIDGESHIRE AND PETERBOROUGH CCG"]
["LAKESIDE","ACCOMPLISH GROUP SUPPORT LTD","NHS BEDFORDSHIRE, LUTON AND MILTON KEYNES CCG"]
["LANCHESTER ROAD HOSPITAL","TEES, ESK AND WEAR VALLEYS NHS FOUNDATION TRUST","NHS COUNTY DURHAM CCG"]
["LANGDON HOSPITAL","DEVON PARTNERSHIP NHS TRUST","NHS DEVON CCG"]
["LANGFORD CENTRE","BRAMLEY HEALTH","NHS EAST SUSSEX CCG"]
["LAUREATE HOUSE (WYTHENSHAWE)","MANCHESTER MENTAL HEALTH AND SOCIAL CARE TRUST","NHS MANCHESTER CCG"]
["LAVENDER WALK ADOLESCENT MH UNIT","CENTRAL AND NORTH WEST LONDON NHS FOUNDATION TRUST","NHS NORTH WEST LONDON CCG"]
["LEE MILL UNIT","LIVEWELL SOUTHWEST","NHS DEVON CCG"]
["LEIGH HOUSE HOSPITAL","SOUTHERN HEALTH NHS FOUNDATION TRUST","NHS HAMPSHIRE, SOUTHAMPTON AND ISLE OF WIGHT CCG"]
["LICHFIELD ROAD","PRIORY GROUP LIMITED","NHS BLACK COUNTRY AND WEST BIRMINGHAM CCG"]
["LIME WALK HOUSE","CHESHIRE AND WIRRAL PARTNERSHIP NHS FOUNDATION TRUST","NHS CHESHIRE CCG"]
["LINCOLNSHIRE SECURE UNIT","LINCOLNSHIRE PARTNERSHIP NHS FOUNDATION TRUST","NHS LINCOLNSHIRE CCG"]
["LITTLE PLUMSTEAD HOSPITAL - ASTLEY COURT","HERTFORDSHIRE PARTNERSHIP UNIVERSITY NHS FOUNDATION TRUST","NHS NORFOLK & WAVENEY CCG"]
["LITTLE PLUMSTEAD HOSPITAL - BROADLAND CLINIC","HERTFORDSHIRE PARTNERSHIP UNIVERSITY NHS FOUNDATION TRUST","NHS NORFOLK & WAVENEY CCG"]
["LITTLE WOODHOUSE HALL CAMHS","LEEDS AND YORK PARTNERSHIP NHS FOUNDATION TRUST","NHS LEEDS CCG"]
["LITTLEBROOK HOSPITAL ","KENT AND MEDWAY NHS AND SOCIAL CARE PARTNERSHIP TRUST","NHS KENT AND MEDWAY CCG"]
["LITTLEMORE MENTAL HEALTH CENTRE","OXFORD HEALTH NHS FOUNDATION TRUST","NHS OXFORDSHIRE CCG"]
["LLANARTH COURT HOSPITAL","PRIORY GROUP LIMITED","WALES"]
["LOMBARD HOUSE","PRIORY GROUP LIMITED","NHS NORFOLK & WAVENEY CCG"]
["LONGREACH HOUSE","CORNWALL PARTNERSHIP NHS FOUNDATION TRUST","NHS KERNOW CCG"]
["LUSTRUM VALE / THE DALES","TEES, ESK AND WEAR VALLEYS NHS FOUNDATION TRUST","NHS TEES VALLEY CCG"]
["LUTON & DUNSTABLE HOSPITAL","EAST LONDON NHS FOUNDATION TRUST","NHS BEDFORDSHIRE, LUTON AND MILTON KEYNES CCG"]
["LUTON AND CENTRAL BEDFORDSHIRE MENTAL HEALTH UNIT","EAST LONDON NHS FOUNDATION TRUST","NHS BEDFORDSHIRE, LUTON AND MILTON KEYNES CCG"]
["LYNFIELD MOUNT HOSPITAL","BRADFORD DISTRICT CARE NHS FOUNDATION TRUST","NHS BRADFORD DISTRICT AND CRAVEN CCG"]
["MAGNA HOUSE","ENBRIDGE HEALTHCARE LIMITED","NHS LINCOLNSHIRE CCG"]
["MALSIS HALL - SHELTON HOUSE","ECHO","NHS BRADFORD DISTRICT AND CRAVEN CCG"]
["MANSFIELD COMMUNITY HOSPITAL - ALEXANDER HOUSE","NOTTINGHAMSHIRE HEALTHCARE NHS FOUNDATION TRUST","NHS NOTTINGHAM AND NOTTINGHAMSHIRE CCG"]
["MAPLE HOUSE (formerly ASH HOUSE)","KRINVEST GROUP","NHS WARRINGTON CCG"]
["MARKET WEIGHTON","PRIORY GROUP LIMITED","NHS EAST RIDING OF YORKSHIRE CCG"]
["MAUDSLEY HOSPITAL - SNOWSFIELDS ADOLESCENT UNIT","SOUTH LONDON AND MAUDSLEY NHS FOUNDATION TRUST","NHS SOUTH EAST LONDON CCG"]
["MEADOWBROOK (MANCHESTER)","GREATER MANCHESTER MENTAL HEALTH NHS FOUNDATION TRUST","NHS SALFORD CCG"]
["MIDDLETON ST GEORGE","PRIORY GROUP LIMITED","NHS TEES VALLEY CCG"]
["MILDMAY OAKS","PRIORY GROUP LIMITED","NHS HAMPSHIRE, SOUTHAMPTON AND ISLE OF WIGHT CCG"]
["MILL GARTH HOSPITAL","PRIORY GROUP LIMITED","NHS LEEDS CCG"]
["MIRANDA HOUSE (PICU)","HUMBER TEACHING NHS FOUNDATION TRUST","NHS HULL CCG"]
["MOSSLEY HILL HOSPITAL","MERSEY CARE NHS TRUST","NHS LIVERPOOL CCG"]
["NELSON HOUSE","PRIORY GROUP LIMITED","NHS HAMPSHIRE, SOUTHAMPTON AND ISLE OF WIGHT CCG"]
["NEW HALL INDEPENDENT HOSPITAL","MENTAL HEALTH CARE (UK) LTD","WALES"]
["NEWBRIDGE HOUSE CAMHS","NEWBRIDGE CARE SYSTEMS LTD","NHS BLACK COUNTRY AND WEST BIRMINGHAM CCG"]
["NEWHAM CENTRE FOR MENTAL HEALTH","EAST LONDON NHS FOUNDATION TRUST","NHS NORTH EAST LONDON CCG"]
["NEWMARKET HOUSE CLINIC","NEWMARKET HOUSE HEALTHCARE LTD","NHS NORFOLK & WAVENEY CCG"]
["NEWTON LODGE","SOUTH WEST YORKSHIRE PARTNERSHIP NHS FOUNDATION TRUST","NHS WAKEFIELD CCG"]
["NORTHGATE HOSPITAL (Kenneth Day Unit - med secure)","NORTHUMBERLAND, TYNE AND WEAR NHS FOUNDATION TRUST","NHS NORTHUMBERLAND CCG"]
["NORTHGATE HOSPITAL (non-secure)","NORTHUMBERLAND, TYNE AND WEAR NHS FOUNDATION TRUST","NHS NORTHUMBERLAND CCG"]
["NORTHGATE HOSPITAL (Tweed Unit - low secure)","NORTHUMBERLAND, TYNE AND WEAR NHS FOUNDATION TRUST","NHS NORTHUMBERLAND CCG"]
["NORTHSIDE HOUSE was NORVIC","NORFOLK AND SUFFOLK NHS FOUNDATION TRUST","NHS NORFOLK & WAVENEY CCG"]
["CYGNET STORTHFIELD HOUSE","CYGNET HEALTH CARE LIMITED","NHS DERBY AND DERBYSHIRE CCG"]
["OAK RISE","TEES, ESK AND WEAR VALLEYS NHS FOUNDATION TRUST","NHS VALE OF YORK CCG"]
["OAKWOOD","TEES, ESK AND WEAR VALLEYS NHS FOUNDATION TRUST","NHS TEES VALLEY CCG"]
["OXLEAS HOUSE","OXLEAS NHS FOUNDATION TRUST","NHS SOUTH EAST LONDON CCG"]
["PARK HOUSE (NORTH MANCHESTER)","MANCHESTER MENTAL HEALTH AND SOCIAL CARE TRUST","NHS MANCHESTER CCG"]
["PARK VIEW CLINIC CAMHS","BIRMINGHAM personREN'S HOSPITAL NHS FOUNDATION TRUST","NHS BIRMINGHAM AND SOLIHULL CCG"]
["PINETREE COURT","LUDLOW STREET HEALTHCARE ","WALES"]
["PLYM BRIDGE HOUSE","LIVEWELL SOUTHWEST","NHS DEVON CCG"]
["POTTERS BAR","ELYSIUM HEALTHCARE","NHS HERTS VALLEYS CCG"]
["PRINCESS ROYAL HOSPITAL - CHALKHILL CAMHS","SUSSEX PARTNERSHIP NHS FOUNDATION TRUST","NHS WEST SUSSEX CCG"]
["PRIORITY HOUSE","KENT AND MEDWAY NHS AND SOCIAL CARE PARTNERSHIP TRUST","NHS KENT AND MEDWAY CCG"]
["PRIORY HOSPITAL EAST MIDLANDS","PRIORY GROUP LIMITED","NHS NOTTINGHAM AND NOTTINGHAMSHIRE CCG"]
["PRIORY HOSPITAL LINCOLNSHIRE","PRIORY GROUP LIMITED","NHS LINCOLNSHIRE CCG"]
["PRIORY HOSPITAL NORTH LONDON - NHS SERVICES","PRIORY GROUP LIMITED","NHS NORTH CENTRAL LONDON CCG"]
["PROSPECT PARK HOSPITAL","BERKSHIRE HEALTHCARE NHS FOUNDATION TRUST","NHS BERKSHIRE WEST CCG"]
["QUEEN MARY'S HOSPITAL ROEHAMPTON","ST GEORGE'S UNIVERSITY HOSPITALS NHS FOUNDATION TRUST","NHS SOUTH WEST LONDON CCG"]
["RADBOURNE UNIT","DERBYSHIRE COMMUNITY HEALTH SERVICES NHS FOUNDATION TRUST","NHS DERBY AND DERBYSHIRE CCG"]
["RAMPTON HOSPITAL (high secure)","NOTTINGHAMSHIRE HEALTHCARE NHS FOUNDATION TRUST","NHS BASSETLAW CCG"]
["RATHBONE HOSPITAL","MERSEY CARE NHS TRUST","NHS LIVERPOOL CCG"]
["RAVENSWOOD HOUSE HOSPITAL","SOUTHERN HEALTH NHS FOUNDATION TRUST","NHS HAMPSHIRE, SOUTHAMPTON AND ISLE OF WIGHT CCG"]
["REASIDE CLINIC","BIRMINGHAM AND SOLIHULL MENTAL HEALTH NHS FOUNDATION TRUST","NHS BIRMINGHAM AND SOLIHULL CCG"]
["RECOVERY FIRST","ELYSIUM HEALTHCARE","NHS HALTON CCG"]
["REDWOODS CENTRE","SOUTH STAFFORDSHIRE AND SHROPSHIRE HEALTHCARE NHS FOUNDATION TRUST","NHS SHROPSHIRE, TELFORD AND WREKIN CCG"]
["RICHMOND HOUSE","PRIORY GROUP LIMITED","NHS NORFOLK & WAVENEY CCG"]
["RIVERDALE GRANGE CLINIC","RIVERDALE GRANGE LIMITED","NHS SHEFFIELD CCG"]
["RIVERSIDE CENTRE","CENTRAL AND NORTH WEST LONDON NHS FOUNDATION TRUST","NHS NORTH WEST LONDON CCG"]
["ROCHFORD COMMUNITY HOSPITAL","SOUTH ESSEX PARTNERSHIP UNIVERSITY NHS FOUNDATION TRUST","NHS CASTLE POINT AND ROCHFORD CCG"]
["ROEHAMPTON","PRIORY GROUP LIMITED","NHS SOUTH WEST LONDON CCG"]
["ROSE LODGE","NORTHUMBERLAND, TYNE AND WEAR NHS FOUNDATION TRUST","NHS SOUTH TYNESIDE CCG"]
["ROSEBERRY PARK HOSPITAL (RIDGEWAY)","TEES, ESK AND WEAR VALLEYS NHS FOUNDATION TRUST","NHS TEES VALLEY CCG"]
["ROSEMOUNT SITE - GREENWAYS","CHESHIRE AND WIRRAL PARTNERSHIP NHS FOUNDATION TRUST","NHS CHESHIRE CCG"]
["ROWAN VIEW","MERSEY CARE NHS TRUST","NHS SOUTH SEFTON CCG"]
["ROYAL BLACKBURN HOSPITAL","LANCASHIRE CARE NHS FOUNDATION TRUST","NHS BLACKBURN WITH DARWEN CCG"]
["ROYAL BOLTON HOSPITAL","GREATER MANCHESTER MENTAL HEALTH NHS FOUNDATION TRUST","NHS BOLTON CCG"]
["ROYAL MANCHESTER personREN'S HOSPITAL","CENTRAL MANCHESTER UNIVERSITY HOSPITALS NHS FOUNDATION TRUST","NHS MANCHESTER CCG"]
["RUSHCLIFFE HOSPITAL","RUSHCLIFFE CARE GROUP","WALES"]
["SADDLEBRIDGE","CHESHIRE AND WIRRAL PARTNERSHIP NHS FOUNDATION TRUST","NHS CHESHIRE CCG"]
["SELDEN CENTRE","SUSSEX PARTNERSHIP NHS FOUNDATION TRUST","NHS WEST SUSSEX CCG"]
["SHEAR MEADOW","CYGNET HEALTH CARE LIMITED","NHS HERTS VALLEYS CCG"]
["SHEPHERD HOUSE","SUSSEX PARTNERSHIP NHS FOUNDATION TRUST","NHS WEST SUSSEX CCG"]
["SHREWSBURY COURT","WHITEPOST HEALTHCARE GROUP","NHS SURREY HEARTLANDS CCG"]
["SOUTHAMPTON ADULT (MARCHWOOD)","PRIORY GROUP LIMITED","NHS HAMPSHIRE, SOUTHAMPTON AND ISLE OF WIGHT CCG"]
["SPRING WOOD LODGE","ELYSIUM HEALTHCARE","NHS LEEDS CCG"]
["SPRINGFIELD UNIVERSITY HOSPITAL","SOUTH WEST LONDON AND ST GEORGE'S MENTAL HEALTH NHS TRUST","NHS SOUTH WEST LONDON CCG"]
["SPRINGVIEW HOSPITAL - PSYCHIATRIC SERVICES","CHESHIRE AND WIRRAL PARTNERSHIP NHS FOUNDATION TRUST","NHS WIRRAL CCG"]
["ST ANDREW'S HEALTHCARE - BIRMINGHAM","ST ANDREW'S HEALTHCARE","NHS BIRMINGHAM AND SOLIHULL CCG"]
["ST ANDREW'S HEALTHCARE - ESSEX","ST ANDREW'S HEALTHCARE","NHS BASILDON AND BRENTWOOD CCG"]
["ST ANDREW'S HEALTHCARE - NORTHAMPTON","ST ANDREW'S HEALTHCARE","NHS NORTHAMPTONSHIRE CCG "]
["ST ANN'S HOSPITAL","BARNET, ENFIELD AND HARINGEY MENTAL HEALTH NHS TRUST","NHS NORTH CENTRAL LONDON CCG"]
["ST ANN'S HOSPITAL DORSET","DORSET HEALTHCARE NHS FOUNDATION TRUST","NHS DORSET CCG"]
["ST AUBYN CENTRE CAMHS","NORTH ESSEX PARTNERSHIP UNIVERSITY NHS FOUNDATION TRUST","NHS NORTH EAST ESSEX CCG"]
["ST BERNARDS AND EALING COMMUNITY SERVICES","WEST LONDON MENTAL HEALTH NHS TRUST","NHS NORTH WEST LONDON CCG"]
["ST CHARLES CENTRE FOR HEALTH AND WELLBEING","CENTRAL AND NORTH WEST LONDON NHS FOUNDATION TRUST","NHS NORTH WEST LONDON CCG"]
["ST DAVID'S INDEPENDENT HOSPITAL","MENTAL HEALTH CARE (UK) LTD","WALES"]
["ST GEORGE'S HOSPITAL","SOUTH STAFFORDSHIRE AND SHROPSHIRE HEALTHCARE NHS FOUNDATION TRUST","NHS STAFFORD AND SURROUNDS CCG"]
["ST GEORGE'S PARK","NORTHUMBERLAND, TYNE AND WEAR NHS FOUNDATION TRUST","NHS NORTHUMBERLAND CCG"]
["ST JAMES HOSPITAL","SOLENT NHS TRUST","NHS PORTSMOUTH CCG"]
["ST JOHN'S HOUSE","PRIORY GROUP LIMITED","NHS IPSWICH AND EAST SUFFOLK CCG"]
["ST LUKE'S HOSPITAL (SIMMONS HOUSE ADOLESCENT)","THE WHITTINGTON HOSPITAL NHS TRUST","NHS NORTH CENTRAL LONDON CCG"]
["ST MAGNUS HOSPITAL","ST MAGNUS HOSPITAL","NHS SURREY HEARTLANDS CCG"]
["ST MARTINS HOSPITAL","KENT AND MEDWAY NHS AND SOCIAL CARE PARTNERSHIP TRUST","NHS KENT AND MEDWAY CCG"]
["ST MARYS HOSPITAL","ELYSIUM HEALTHCARE","NHS WARRINGTON CCG"]
["ST MARY'S HOSPITAL","NORTHAMPTONSHIRE HEALTHCARE NHS FOUNDATION TRUST","NHS NORTHAMPTONSHIRE CCG "]
["ST MICHAEL'S HOSPITAL","COVENTRY AND WARWICKSHIRE PARTNERSHIP NHS TRUST","NHS COVENTRY AND WARWICKSHIRE CCG"]
["ST NEOTS HOSPITAL","ELYSIUM HEALTHCARE","NHS CAMBRIDGESHIRE AND PETERBOROUGH CCG"]
["ST NICHOLAS HOSPITAL","NORTHUMBERLAND, TYNE AND WEAR NHS FOUNDATION TRUST","NHS NEWCASTLE GATESHEAD CCG"]
["ST PANCRAS HOSPITAL","CAMDEN AND ISLINGTON NHS FOUNDATION TRUST","NHS NORTH CENTRAL LONDON CCG"]
["ST PETER'S HOSPITAL","LUDLOW STREET HEALTHCARE","WALES"]
["STEPPING HILL HOSPITAL","PENNINE CARE NHS FOUNDATION TRUST","NHS STOCKPORT CCG"]
["STOCKTON HALL HOSPITAL","PRIORY GROUP LIMITED","NHS VALE OF YORK CCG"]
["STURT HOUSE","ELYSIUM HEALTHCARE","NHS SURREY HEARTLANDS CCG"]
["SUMMERLANDS HOSPITAL SITE - ROWAN WARD","SOMERSET PARTNERSHIP NHS FOUNDATION TRUST","NHS SOMERSET CCG"]
["SUTTONS MANOR","PRIORY GROUP LIMITED","NHS WEST ESSEX CCG"]
["TAMARIND CENTRE","BIRMINGHAM AND SOLIHULL MENTAL HEALTH NHS FOUNDATION TRUST","NHS BIRMINGHAM AND SOLIHULL CCG"]
["TARENTFORT CENTRE","KENT AND MEDWAY NHS AND SOCIAL CARE PARTNERSHIP TRUST","NHS KENT AND MEDWAY CCG"]
["THE BECKLIN CENTRE","LEEDS AND YORK PARTNERSHIP NHS FOUNDATION TRUST","NHS LEEDS CCG"]
["THE BECTON CENTRE CAMHS","SHEFFIELD personREN'S NHS FOUNDATION TRUST","NHS SHEFFIELD CCG"]
["THE CHIMNEYS CLINIC","ELYSIUM HEALTHCARE","NHS WEST SUFFOLK CCG"]
["THE DALLINGTONS","ST MATTHEW'S HEALTHCARE","NHS NORTHAMPTONSHIRE CCG "]
["THE DARWIN CENTRE","NORTH STAFFORDSHIRE COMBINED HEALTHCARE NHS TRUST","NHS STOKE ON TRENT CCG"]
["THE DENE","PRIORY GROUP LIMITED","NHS WEST SUSSEX CCG"]
["THE FARNDON UNIT","ELYSIUM HEALTHCARE","NHS NOTTINGHAM AND NOTTINGHAMSHIRE CCG"]
["THE HARBOUR","LANCASHIRE CARE NHS FOUNDATION TRUST","NHS FYLDE & WYRE CCG"]
["THE LADYWELL UNIT LEWISHAM HOSPITAL","SOUTH LONDON AND MAUDSLEY NHS FOUNDATION TRUST","NHS SOUTH EAST LONDON CCG"]
["THE LAMBETH HOSPITAL","SOUTH LONDON AND MAUDSLEY NHS FOUNDATION TRUST","NHS SOUTH EAST LONDON CCG"]
["THE LIMES HOSPITAL","ELYSIUM HEALTHCARE","NHS DERBY AND DERBYSHIRE CCG"]
["THE ORCHARD","LANCASHIRE CARE NHS FOUNDATION TRUST","NHS MORECAMBE BAY CCG"]
["THE SPINNEY","ELYSIUM HEALTHCARE","NHS WIGAN BOROUGH CCG"]
["THE WOODHOUSE","ELYSIUM HEALTHCARE","NHS NORTH STAFFORDSHIRE CCG"]
["THORNFORD PARK","ELYSIUM HEALTHCARE","NHS BERKSHIRE WEST CCG"]
["TICEHURST HOUSE CAMHS","PRIORY GROUP LIMITED","NHS EAST SUSSEX CCG"]
["TORBAY HOSPITAL","DEVON PARTNERSHIP NHS TRUST","NHS DEVON CCG"]
["TOWER HAMLETS CENTRE FOR MENTAL HEALTH","EAST LONDON NHS FOUNDATION TRUST","NHS NORTH EAST LONDON CCG"]
["TOWNEND COURT","HUMBER TEACHING NHS FOUNDATION TRUST","NHS HULL CCG"]
["TOWNSEND COURT","EAST LONDON NHS FOUNDATION TRUST","NHS BEDFORDSHIRE, LUTON AND MILTON KEYNES CCG"]
["TRAFFORD GENERAL HOSPITAL - MOORSIDE UNIT","GREATER MANCHESTER MENTAL HEALTH NHS FOUNDATION TRUST","NHS TRAFFORD CCG"]
["TY CATRIN","PRIORY GROUP LIMITED","WALES"]
["TY GWYN HALL","ELYSIUM HEALTHCARE","WALES"]
["UPLANDS INDEPENDENT HOSPITAL","CARETECH UK","NHS HAMPSHIRE, SOUTHAMPTON AND ISLE OF WIGHT CCG"]
["WALKER CLOSE","NORFOLK AND SUFFOLK NHS FOUNDATION TRUST","NHS IPSWICH AND EAST SUFFOLK CCG"]
["WARNEFORD HOSPITAL","OXFORD HEALTH NHS FOUNDATION TRUST","NHS OXFORDSHIRE CCG"]
["WARREN COURT (Eric Shepherd Unit)","HERTFORDSHIRE PARTNERSHIP UNIVERSITY NHS FOUNDATION TRUST","NHS HERTS VALLEYS CCG"]
["WATERLOO MANOR HOSPITAL","INMIND HEALTHCARE - HEAD OFFICE","NHS LEEDS CCG"]
["WEAVER LODGE INDEPENDENT HOSPITAL","WEAVER LODGE INDEPENDENT HOSPITAL","NHS CHESHIRE CCG"]
["WELLESLEY","ELYSIUM HEALTHCARE","NHS SOMERSET CCG"]
["WELLS ROAD CENTRE","NOTTINGHAMSHIRE HEALTHCARE NHS FOUNDATION TRUST","NHS NOTTINGHAM AND NOTTINGHAMSHIRE CCG"]
["WELLSPRINGS HOSPITAL SITE - HOLFORD WARD","SOMERSET PARTNERSHIP NHS FOUNDATION TRUST","NHS SOMERSET CCG"]
["WEST PARK HOSPITAL","TEES, ESK AND WEAR VALLEYS NHS FOUNDATION TRUST","NHS TEES VALLEY CCG"]
["WESTLANDS","HUMBER TEACHING NHS FOUNDATION TRUST","NHS HULL CCG"]
["WHALLEY SITE (CALDERSTONES)","MERSEY CARE NHS TRUST","NHS EAST LANCASHIRE CCG"]
["WHIPTON HOSPITAL","DEVON PARTNERSHIP NHS TRUST","NHS DEVON CCG"]
["WHITELEAF CENTRE","OXFORD HEALTH NHS FOUNDATION TRUST","NHS BUCKINGHAMSHIRE CCG"]
["WONFORD HOUSE HOSPITAL","DEVON PARTNERSHIP NHS TRUST","NHS DEVON CCG"]
["WOODBOURNE (BIRMINGHAM)","PRIORY GROUP LIMITED","NHS BIRMINGHAM AND SOLIHULL CCG"]
["WOODHAVEN / TATCHBURY MOUNT","SOUTHERN HEALTH NHS FOUNDATION TRUST","NHS HAMPSHIRE, SOUTHAMPTON AND ISLE OF WIGHT CCG"]
["WOODLANDS","SUSSEX PARTNERSHIP NHS FOUNDATION TRUST","NHS EAST SUSSEX CCG"]
["WOODLEA CLINIC (LEARNING DISABILITY SERVICE) - low secure","SOUTH ESSEX PARTNERSHIP UNIVERSITY NHS FOUNDATION TRUST","NHS BEDFORDSHIRE, LUTON AND MILTON KEYNES CCG"]
["WOODLEIGH COMMUNITY","INMIND HEALTHCARE - HEAD OFFICE","NHS SOUTH WEST LONDON CCG"]
["OTHER","OTHER","`"]
[]
["Basis of Consent"]
["Please select from list"]
["Person has capacity and has consented to CTR"]
["Person does not have capacity but there is evidence of a best interests decision"]
[]
["12 point scale"]
["Please select from list"]
["Point 1 - Person in active treatment - start discharge planning"]
["Point 2 - Person identified as ready for discharge - specification outline required"]
["Point 3 - Capacity assessment required (community accommodation & support)"]
["Point 4 - Community based risk asssessment"]
["Point 5 - Service specification complete - ready to be advertised / tendering "]
["Point 6 - Procurement process to be undertaken (where required)"]
["Point 7 - Accommodation search to be identified and secured and adaptions completed"]
["Point 8.1 - Funding (for discharge support) to be agreed and in place"]
["Point 8.2 - Additional funding agreed and in place (where required)"]
["Point 9.1 - Workforce / provision - ensure provider staff are recruited"]
["Point 9.2 - Workforce / provision: Community Multidisciplinary Team personnel identified"]
["Point 10.1 - Legal framework - Mental Health Tribunal (if appropriate)"]
["Point 10.2 - Legal framework - Court of Protection (if required)"]
["Point 10.3 - Legal framework - Parole Board (if required)"]
["Point 10.4 - Legal framework - Ministry of Justice Application (if required)"]
["Point 11.1 - Community move / discharge - communicate and commence transition plan"]
["Point 11.2 - Community move / discharge - s17 leave underway as part of transition to community placement"]
["Point 12 - Discharge"]
[]
["Mental Health Act Legal Status"]
["Please select from list"]
["Informal"]
["Detained under Mental Health Act Section 2"]
["Detained under Mental Health Act Section 3"]
["Subject to guardianship under Mental Health Act Section 37"]
["Subject to guardianship under Mental Health Act Section 37 with section 41 restrictions"]
["Detained under Mental Health Act Section 47 "]
["Detained under Mental Health Act Section 47 with section 49 restrictions"]
[]
["Mental Capacity Act Legal Status"]
["Please select from list"]
["Yes"]
["No"]
["N/A"]
[]
["Level of Security"]
["Please select from list"]
["Adult Acute"]
["ETU"]
["High Security"]
["Locked Rehab"]
["Low Security"]
["Medium Security"]
["PICU"]
[]
["Advocates"]
["Please select from list"]
["Family, Friend or Carer Advocate"]
["Independent Mental Capacity Advocate (IMCA)"]
["Independent Mental Health Advocate (IMHA)"]
["Hospital appointed Advocated"]
["LAC Advocate"]
[]
["Learning Disability Type"]
["Please select from list"]
["No"]
["Yes - Mild"]
["Yes - Moderate"]
["Yes - Severe "]
["Yes - Profound"]
[]
["Autism Diagnosis"]
["Please select from list - ANNE TO PROVIDE LIST FOR DROP-DOWN"]
["No"]
["option 1"]
["option 2"]
["option 3"]
["option 4 etc."]
[]
["Levels of Confidence"]
["Please select from list"]
["Confident"]
["Some concerns identified"]
["Not at all confident"]
[]
["Mental Health Act Legal Status","Column1","Column2","Column3","Column4","Column5","Column6","Column7","Column8"]
["Please select from list"]
["1 - Informal"]
["2 - Detained under Mental Health Act Section 2"]
["3 - Detained under Mental Health Act Section 3"]
["4 - Subject to guardianship under Mental Health Act Section 37"]
["5 - Subject to guardianship under Mental Health Act Section 37 with section 41 restrictions","Is there a link between offending behaviour and diagnosis? ","If yes, is there a treatment plan with outcomes for the cause of the offending behaviour? ","Is there a clear and detailed risk assessment in place using validated assessment tools? What tool(s) have been used? ","Are offence related care and treatment plans clear and comprehensive in the following areas: \n - Assessment and motivational work \n - Offence related treatments Assessment and motivational work\n - Psychological therapies \n - Consolidation and relapse prevention work \n - Discharge planning ","How are offence related treatments being offered? (group/ individual) \n - Is the MoJ role clearly shown in care and treatment plans?  \n - Are requests to MoJ quickly addressed? ","Do risk assessments explain the involvement of the MoJ or probation services? ","Are any risks to victims considered/ Is there a VLO? ","If transferred from youth offending institute/prison, is it clear why they continue to remain in hospital? "]
["6 - Detained under Mental Health Act Section 47"]
["7 - Detained under Mental Health Act Section 47 with section 49 restrictions","Is there a link between offending behaviour and diagnosis? ","If yes, is there a treatment plan with outcomes for the cause of the offending behaviour? ","Is there a clear and detailed risk assessment in place using validated assessment tools? What tool(s) have been used? ","Are offence related care and treatment plans clear and comprehensive in the following areas: \n - Assessment and motivational work \n - Offence related treatments Assessment and motivational work\n - Psychological therapies \n - Consolidation and relapse prevention work \n - Discharge planning ","How are offence related treatments being offered? (group/ individual) \n - Is the MoJ role clearly shown in care and treatment plans?  \n - Are requests to MoJ quickly addressed? ","Do risk assessments explain the involvement of the MoJ or probation services? ","Are any risks to victims considered/ Is there a VLO? ","If transferred from youth offending institute/prison, is it clear why they continue to remain in hospital? "]
["x - Detained under Mental Health Act Section 48 with section 49 restrictions","Is there a link between offending behaviour and diagnosis? ","If yes, is there a treatment plan with outcomes for the cause of the offending behaviour? ","Is there a clear and detailed risk assessment in place using validated assessment tools? What tool(s) have been used? ","Are offence related care and treatment plans clear and comprehensive in the following areas: \n - Assessment and motivational work \n - Offence related treatments Assessment and motivational work\n - Psychological therapies \n - Consolidation and relapse prevention work \n - Discharge planning ","How are offence related treatments being offered? (group/ individual) \n - Is the MoJ role clearly shown in care and treatment plans?  \n - Are requests to MoJ quickly addressed? ","Do risk assessments explain the involvement of the MoJ or probation services? ","Are any risks to victims considered/ Is there a VLO? ","If transferred from youth offending institute/prison, is it clear why they continue to remain in hospital? "]
["xx - Detained under Criminal Procedure (Insanity) Act 1964 as amended by the Criminal Procedures (Insanity and Unfitness to Plead) Act 1991","Is there a link between offending behaviour and diagnosis? ","If yes, is there a treatment plan with outcomes for the cause of the offending behaviour? ","Is there a clear and detailed risk assessment in place using validated assessment tools? What tool(s) have been used? ","Are offence related care and treatment plans clear and comprehensive in the following areas: \n - Assessment and motivational work \n - Offence related treatments Assessment and motivational work\n - Psychological therapies \n - Consolidation and relapse prevention work \n - Discharge planning ","How are offence related treatments being offered? (group/ individual) \n - Is the MoJ role clearly shown in care and treatment plans?  \n - Are requests to MoJ quickly addressed? ","Do risk assessments explain the involvement of the MoJ or probation services? ","Are any risks to victims considered/ Is there a VLO? ","If transferred from youth offending institute/prison, is it clear why they continue to remain in hospital? "]
[]
[]
["Yes/No only","Column1"]
["Please select from list"]
["Yes"," - when was it last reviewed?  \n - what does it say?\n - is it being delivered?\n - is it effective?\n \n"]
["No","Does the person have any long-term conditions, health risks or chronic conditions? and if so, is there clear care plan in place to support the monitoring and management of these conditions including regular specialist reviews?"]
[]
[]
["Yes/No/ Not Applicable"]
["Please select from list"]
["Yes"]
["No"]
["N/A"]
[]
["DSR Rag Rating"]
["Please select from list"]
["Immediate risk that the person will be admitted to a mental health hospital"]
["Immediate risk that the person will be admitted to a mental health hospital without urgent intervention"]
["Some risks that could lead to the person being admitted or re-admitted to a mental health hospital, but currently these risks are being effectively managed"]
["Person is currently in inpatient services"]
[]
["Outcome Status Community"]
["Please select from list"]
["Alternative support identified"]
["Alternative support not identified but person remains in current setting"]
[]
["Reasons for admission to hospital"]
["Please select from list"]
["Specific need for assessment and treatment to be delivered on a short term basis in hospital"]
["No Person Centred Plan on which to base individual service specification"]
["Lack of agreement on future plan"]
["No identified care coordinator in community"]
["Lack of suitable housing"]
["No suitable care provider"]
["Lack of agreement on funding"]
["Appropriate Clinical skills not available to community to support package"]
["Responsible commissioner issues"]
["Formulation, diagnosis and resultant treatment plan unclear & absence of defined outcomes"]
["Person subject to MoJ recall to hospital"]
["Person subject to recall to hospital under a Community Treatment Order (Mental Health Act)"]
["Legal barrier (e.g. Court of Protection)"]
["Family or carers not supporting care plan (family support issues)"]
["Other"]
[]
["Outcome for Community CTR","Column1"]
["Please select from list"]
["Person will remain at home"]
["Person will remain in the community"]
["Person will be admitted to hospital","Alternative support not identified and person admitted to hospital"]
[]
["Input"]
["Please select from list"]
["Yes - without help"]
["Yes - with help"]
["No"]
[]
["Levels of Confidence"]
["Please select from list"]
["Views not obtained"]
["Confident"]
["Some concerns identified"]
["Not at all confident"]
[]
["Pre DSR"]
["Please select from list"]
["Not previously on the DSR"]
["Immediate risk that the person will be admitted to a mental health hospital"]
["Immediate risk that the person will be admitted to a mental health hospital without urgent intervention"]
["Some risks that could lead to the person being admitted or re-admitted to a mental health hospital, but currently these risks are being effectively managed"]
["Person is currently in inpatient services"]

{"sheet":"Concerns","index":8,"n_rows":22,"n_cols":2,"rows_kept":22,"cut":false,"hidden":true,"merged":[]}
["Page and number","Information pulled through from sheets to prevent spillage"]
["A1",{"$f":"Views!C41","v":0}]
["A2",{"$f":"Views!C42","v":0}]
["A3",{"$f":"Views!C43","v":0}]
["A4",{"$f":"Views!C44","v":0}]
["A5",{"$f":"Views!C45","v":0}]
["A6",{"$f":"Views!C46","v":0}]
["B1",{"$f":"'Risks & Issues'!C43","v":0}]
["B2",{"$f":"'Risks & Issues'!C44","v":0}]
["B3",{"$f":"'Risks & Issues'!C45","v":0}]
["B4",{"$f":"'Risks & Issues'!C46","v":0}]
["B5",{"$f":"'Risks & Issues'!C47","v":0}]
["B6",{"$f":"'Risks & Issues'!C48","v":0}]
["C1",{"$f":"'Current Care Package'!C32","v":0}]
["C2",{"$f":"'Current Care Package'!C33","v":0}]
["C3",{"$f":"'Current Care Package'!C34","v":0}]
["C4",{"$f":"'Current Care Package'!C35","v":0}]
["C5",{"$f":"'Current Care Package'!C36","v":0}]
["C6",{"$f":"'Current Care Package'!C37","v":0}]
[]
[null,"Observations"]
[null,{"$f":"'Action Summary'!C39","v":" "}]